Department Family,Entity,Date Paid,Expense Type,Expense Area,Supplier,Transaction Number,Amount (�),Supplier VAT Registration Number
BEIS,Met Office,2021-06-02,11 SERVICES,TECHNOLOGY AND CIO,AMAZON WEB SERVICES INC.,10237,78077.48,N/A
BEIS,Met Office,2021-06-02,11 SERVICES,TECHNOLOGY AND CIO,AMAZON WEB SERVICES INC.,10244,10772,N/A
BEIS,Met Office,2021-06-09,11 SERVICES,PROGRAMMES,REGENTS OF THE UNIVERSITY OF COLORADO,10250,36086.2,-
BEIS,Met Office,2021-06-23,11 SERVICES,PROGRAMMES,UCAR INCOMING PAYMENTS,10256,7886.85,-
BEIS,Met Office,2021-06-23,11 SERVICES,SERVICES,NSSL GLOBAL LTD,10260,49.63,725151948
BEIS,Met Office,2021-06-02,11 SERVICES,MARKETS,RIMES,10261,37311.77,-
BEIS,Met Office,2021-06-02,08 SOFTWARE LICENCES,MARKETS,"INTELLOVATIONS, LLC",10262,2896.49,-
BEIS,Met Office,2021-06-30,11 SERVICES,TECHNOLOGY AND CIO,AMAZON WEB SERVICES INC.,10269,91120.87,N/A
BEIS,Met Office,2021-06-30,11 SERVICES,SERVICES,METOCEAN TELEMATICS LTD,10270,419.12,-
BEIS,Met Office,2021-06-09,11 SERVICES,TECHNOLOGY AND CIO,AMAZON WEB SERVICES INC.,10272,394.76,N/A
BEIS,Met Office,2021-06-30,11 SERVICES,TECHNOLOGY AND CIO,AMAZON WEB SERVICES INC.,10273,421.87,N/A
BEIS,Met Office,2021-06-23,11 SERVICES,TECHNOLOGY AND CIO,AMAZON WEB SERVICES INC.,10276,286.97,N/A
BEIS,Met Office,2021-06-30,11 SERVICES,TECHNOLOGY AND CIO,AMAZON WEB SERVICES INC.,10279,0.45,N/A
BEIS,Met Office,2021-06-30,11 SERVICES,MARKETS,"BASILIO SOZINHO CUBULA SERVI�OS, E.I.",10280,3455.83,N/A
BEIS,Met Office,2021-06-23,11 SERVICES,TECHNOLOGY AND CIO,AMAZON WEB SERVICES INC.,10281,0.43,N/A
BEIS,Met Office,2021-06-23,11 SERVICES,MARKETS,ICIMOD,10282,3975.66,-
BEIS,Met Office,2021-06-23,11 SERVICES,MARKETS,ICIMOD,10283,8615.22,-
BEIS,Met Office,2021-06-23,11 SERVICES,MARKETS,ICIMOD,10284,35124.09,-
BEIS,Met Office,2021-06-23,11 SERVICES,MARKETS,ICIMOD,10284,3975.66,-
BEIS,Met Office,2021-06-23,11 SERVICES,SCIENCE,National Oceanography Centre,22056,39030.21,GB 338 5487 64
BEIS,Met Office,2021-06-23,STOCK,SERVICES,Vaisala Oyj,22321,0,FI01244162
BEIS,Met Office,2021-06-23,STOCK,SERVICES,Vaisala Oyj,22321,0,FI01244162
BEIS,Met Office,2021-06-23,TRADE CREDITORS,SERVICES,Vaisala Oyj,22321,45428.45,FI01244162
BEIS,Met Office,2021-06-23,TRADE CREDITORS,SERVICES,Vaisala Oyj,22321,11703.59,FI01244162
BEIS,Met Office,2021-06-30,11 SERVICES,MARKETS,CONSULTEC,22333,3938.24,400005915
BEIS,Met Office,2021-06-30,11 SERVICES,MARKETS,CONSULTEC,22347,-3938.24,400005915
BEIS,Met Office,2021-06-02,07 EQUIPMENT,SCIENCE,OMNISYS INSTRUMENTS AB,22515,8646.24,SE556454668601
BEIS,Met Office,2021-06-02,07 EQUIPMENT,SERVICES,Vaisala Oyj,22567,4869.19,FI01244162
BEIS,Met Office,2021-06-02,07 EQUIPMENT,SERVICES,Vaisala Oyj,22568,2949.8,FI01244162
BEIS,Met Office,2021-06-02,07 EQUIPMENT,SERVICES,Vaisala Oyj,22572,22641.72,FI01244162
BEIS,Met Office,2021-06-02,07 EQUIPMENT,SERVICES,Vaisala Oyj,22573,4869.19,FI01244162
BEIS,Met Office,2021-06-02,07 EQUIPMENT,SERVICES,Vaisala Oyj,22574,43214.03,FI01244162
BEIS,Met Office,2021-06-02,12 INTERNATIONAL,MARKETS,ECOMET,22597,18942.94,EXEMPT
BEIS,Met Office,2021-06-23,10 EQUIPMENT MAINTENANCE,SERVICES,Vaisala Oyj,22600,23691.17,FI01244162
BEIS,Met Office,2021-06-09,11 SERVICES,MARKETS,Red Cross Red Crescent Climate Centre,22606,36285.03,N/A
BEIS,Met Office,2021-06-09,11 SERVICES,SERVICES,"EUTELSAT, S.A.",22607,2964.07,-
BEIS,Met Office,2021-06-09,11 SERVICES,SERVICES,COLLECTE LOCALISATION SATELLITES (C.L.S.),22608,6317.64,FR95338034390
BEIS,Met Office,2021-06-09,11 SERVICES,SERVICES,COLLECTE LOCALISATION SATELLITES (C.L.S.),22609,7580.82,FR95338034390
BEIS,Met Office,2021-06-09,08 SOFTWARE LICENCES,MARKETS,"IBL SOFTWARE ENGINEERING, SPOL S.R.O.",22610,9519.9,SK2020241883
BEIS,Met Office,2021-06-02,11 SERVICES,MARKETS,"EUTELSAT MADERIA, UNIPESSOAL LDA",22613,451.58,PT511283733
BEIS,Met Office,2021-06-02,11 SERVICES,SERVICES,"EUTELSAT MADERIA, UNIPESSOAL LDA",22613,1806.33,PT511283733
BEIS,Met Office,2021-06-02,11 SERVICES,MARKETS,"EUTELSAT MADERIA, UNIPESSOAL LDA",22614,451.58,PT511283733
BEIS,Met Office,2021-06-02,11 SERVICES,SERVICES,"EUTELSAT MADERIA, UNIPESSOAL LDA",22614,1806.33,PT511283733
BEIS,Met Office,2021-06-02,11 SERVICES,MARKETS,"EUTELSAT MADERIA, UNIPESSOAL LDA",22615,451.58,PT511283733
BEIS,Met Office,2021-06-02,11 SERVICES,SERVICES,"EUTELSAT MADERIA, UNIPESSOAL LDA",22615,1806.33,PT511283733
BEIS,Met Office,2021-06-02,11 SERVICES,CHIEF FINANCIAL OFFICER,TELIA FINLAND OYJ,22623,159.65,FI14756079
BEIS,Met Office,2021-06-23,08 SOFTWARE LICENCES,MARKETS,"IBL SOFTWARE ENGINEERING, SPOL S.R.O.",22626,2366.18,SK2020241883
BEIS,Met Office,2021-06-23,10 EQUIPMENT MAINTENANCE,SERVICES,RAYMETRICS S.A. (GREEK ACCOUNT),22633,733.89,EL999641589
BEIS,Met Office,2021-06-23,10 EQUIPMENT MAINTENANCE,SERVICES,RAYMETRICS S.A. (GREEK ACCOUNT),22634,8710.77,EL999641589
BEIS,Met Office,2021-06-02,11 SERVICES,CHIEF FINANCIAL OFFICER,DBS FINANCE RECEIPTS CTS,22635,168.07,888805068
BEIS,Met Office,2021-06-23,13 MISCELLANEOUS,CHIEF FINANCIAL OFFICER,DEMSTAR BUSINESS SOLUTIONS LTD,22639,98.86,10156145J
BEIS,Met Office,2021-06-23,08 SOFTWARE LICENCES,MARKETS,"IBL SOFTWARE ENGINEERING, SPOL S.R.O.",22640,2051.78,SK2020241883
BEIS,Met Office,2021-06-02,07 EQUIPMENT,SCIENCE,ALCO RENTAL SERVICES S.L.,22641,2883.92,-
BEIS,Met Office,2021-06-02,07 EQUIPMENT,SCIENCE,ALCO RENTAL SERVICES S.L.,22641,44.3,-
BEIS,Met Office,2021-06-23,STOCK,SERVICES,VAISALA LTD,22642,0,336100011
BEIS,Met Office,2021-06-23,TRADE CREDITORS,SERVICES,VAISALA LTD,22642,78315.58,336100011
BEIS,Met Office,2021-06-30,11 SERVICES,SCIENCE,FUNDACIO UNIVERSITAT ROVIRA I VIRGILI (FURV),22644,5142.37,ESG43581321
BEIS,Met Office,2021-06-23,11 SERVICES,SCIENCE,UNIVERSIDAD TECNOLOGICA NACIONAL,22652,2584.1,-
BEIS,Met Office,2021-06-30,PLANT AND EQUIPMENT,PROGRAMMES,VAISALA LTD,22654,30524.73,336100011
BEIS,Met Office,2021-06-30,11 SERVICES,SCIENCE,B-OPEN SOLUTIONS SRL,22655,43068.4,-
BEIS,Met Office,2021-06-23,11 SERVICES,CHIEF FINANCIAL OFFICER,EIR,22656,52.46,4736919B
BEIS,Met Office,2021-06-09,07 EQUIPMENT,SCIENCE,ALCO RENTAL SERVICES S.L.,22657,1721.04,-
BEIS,Met Office,2021-06-09,07 EQUIPMENT,SCIENCE,ALCO RENTAL SERVICES S.L.,22658,2881.08,-
BEIS,Met Office,2021-06-09,11 SERVICES,SERVICES,"EUTELSAT MADERIA, UNIPESSOAL LDA",22659,2236.49,PT511283733
BEIS,Met Office,2021-06-09,11 SERVICES,MARKETS,Eumetsat,22661,6884.16,VE
BEIS,Met Office,2021-06-30,11 SERVICES,MARKETS,CONSULTEC,22673,129.02,400005915
BEIS,Met Office,2021-06-30,11 SERVICES,MARKETS,CONSULTEC,22674,3225.46,400005915
BEIS,Met Office,2021-06-30,13 MISCELLANEOUS,SERVICES,SPRINGER CUSTOMER SERVICE CENTER GMBH,22675,8267.76,209719094
BEIS,Met Office,2021-06-23,11 SERVICES,MARKETS,METEO-FRANCE AGENCE COMPTABLE SEC D2C,22676,5751.94,FR03180060030
BEIS,Met Office,2021-06-30,REVENUE,SCIENCE,MAX-PLANCK INSTITUT FUR METEOROLOGIE,22679,28774.19,DE129517720
BEIS,Met Office,2021-06-30,11 SERVICES,CHIEF FINANCIAL OFFICER,EIR,22702,52.44,4736919B
BEIS,Met Office,2021-06-30,11 SERVICES,MARKETS,CONSULTEC,22705,3440.73,400005915
BEIS,Met Office,2021-06-30,11 SERVICES,PROGRAMMES,LANGUAGE BURO OU,22706,222.64,EE101964197
BEIS,Met Office,2021-06-02,06 ACCOMMODATION,CHIEF FINANCIAL OFFICER,TULLY FARM HOLDINGS T/A CONTRACT SERVICES,443718,6711.4,872632707
BEIS,Met Office,2021-06-02,06 ACCOMMODATION,CHIEF FINANCIAL OFFICER,TULLY FARM HOLDINGS T/A CONTRACT SERVICES,443718,3731.39,872632707
BEIS,Met Office,2021-06-02,13 MISCELLANEOUS,CHIEF FINANCIAL OFFICER,POSTURITE (UK) LTD,449176,688.2,583565114
BEIS,Met Office,2021-06-04,10 EQUIPMENT MAINTENANCE,PROGRAMMES,TECHNOLOGY INTERNATIONAL EUROPE LTD,451066,1500,448495211
BEIS,Met Office,2021-06-04,10 EQUIPMENT MAINTENANCE,PROGRAMMES,TECHNOLOGY INTERNATIONAL EUROPE LTD,451066,750,448495211
BEIS,Met Office,2021-06-02,13 MISCELLANEOUS,CHIEF FINANCIAL OFFICER,POSTURITE (UK) LTD,451486,223.14,583565114
BEIS,Met Office,2021-06-16,11 SERVICES,PEOPLE,HAWK INCENTIVES LTD,452543,4977,238839422
BEIS,Met Office,2021-06-18,INFORMATION TECHNOLOGY,PROGRAMMES,Campbell Scientific Ltd,453272,5176.8,428453933
BEIS,Met Office,2021-06-25,06 ACCOMMODATION,CHIEF FINANCIAL OFFICER,Exeter City Council,453746,140288,142335594
BEIS,Met Office,2021-06-30,11 SERVICES,TECHNOLOGY AND CIO,BAE SYSTEMS APPLIED INTELLIGENCE LIMITED,453856,11243.89,GB641407169
BEIS,Met Office,2021-06-09,11 SERVICES,PROGRAMMES,Health & Safety Executive,454076,145299.2,888810177
BEIS,Met Office,2021-06-02,13 MISCELLANEOUS,SCIENCE,University Of Oxford,454152,1000,125506730
BEIS,Met Office,2021-06-25,11 SERVICES,PROGRAMMES,UK CENTRE FOR ECOLOGY & HYDROLOGY (UKCEH),454167,171930,336940192
BEIS,Met Office,2021-06-09,11 SERVICES,PEOPLE,EDENRED UK (CYCLESCHEME),454685,13794.62,649 503 520
BEIS,Met Office,2021-06-11,11 SERVICES,PROGRAMMES,HOGAN LOVELLS INTERNATIONAL LLP,454896,18356.25,GB123371543
BEIS,Met Office,2021-06-23,INFORMATION TECHNOLOGY,PROGRAMMES,COMPUTACENTER (UK) LTD,455029,113835.96,490334648
BEIS,Met Office,2021-06-09,11 SERVICES,PEOPLE,HAWK INCENTIVES LTD,455089,7696.5,238839422
BEIS,Met Office,2021-06-02,13 MISCELLANEOUS,CHIEF FINANCIAL OFFICER,POSTURITE (UK) LTD,455209,181.04,583565114
BEIS,Met Office,2021-06-30,13 MISCELLANEOUS,SCIENCE,University Of Reading,455222,2250,200012659
BEIS,Met Office,2021-06-30,13 MISCELLANEOUS,SCIENCE,University Of Reading,455224,2250,200012659
BEIS,Met Office,2021-06-02,04 CONTRACTORS,PEOPLE,OUTSOURCE UK LIMITED,455237,2358.95,576118722
BEIS,Met Office,2021-06-09,11 SERVICES,PROGRAMMES,University Of Bristol,455254,2182,991261800
BEIS,Met Office,2021-06-02,13 MISCELLANEOUS,CHIEF FINANCIAL OFFICER,POSTURITE (UK) LTD,455275,32.5,583565114
BEIS,Met Office,2021-06-02,13 MISCELLANEOUS,CHIEF FINANCIAL OFFICER,POSTURITE (UK) LTD,455284,-32.5,583565114
BEIS,Met Office,2021-06-02,13 MISCELLANEOUS,CHIEF FINANCIAL OFFICER,POSTURITE (UK) LTD,455323,680.14,583565114
BEIS,Met Office,2021-06-02,13 MISCELLANEOUS,CHIEF FINANCIAL OFFICER,POSTURITE (UK) LTD,455326,680.14,583565114
BEIS,Met Office,2021-06-04,13 MISCELLANEOUS,PEOPLE,HEALTH MANAGEMENT LTD,455367,3250.75,792250621
BEIS,Met Office,2021-06-02,11 SERVICES,CHIEF FINANCIAL OFFICER,Vodafone Limited,455370,4329.54,569953277
BEIS,Met Office,2021-06-09,11 SERVICES,PEOPLE,EDENRED UK (CYCLESCHEME),455439,-13794.62,649 503 520
BEIS,Met Office,2021-06-21,CYCLESCHEME,OTHER,EDENRED UK (CYCLESCHEME),455440,13794.62,649 503 520
BEIS,Met Office,2021-06-01,11 SERVICES,PEOPLE,SODEXO MOT SOL UK  LTD (CHILDCARE RECEIPTS),455445,-125,733644335
BEIS,Met Office,2021-06-01,11 SERVICES,PEOPLE,SODEXO MOT SOL UK  LTD (CHILDCARE RECEIPTS),455446,-125,733644335
BEIS,Met Office,2021-06-01,11 SERVICES,PEOPLE,SODEXO MOT SOL UK  LTD (CHILDCARE RECEIPTS),455447,-125,733644335
BEIS,Met Office,2021-06-01,11 SERVICES,PEOPLE,SODEXO MOT SOL UK  LTD (CHILDCARE RECEIPTS),455448,-5.93,733644335
BEIS,Met Office,2021-06-01,11 SERVICES,PEOPLE,SODEXO MOT SOL UK  LTD (CHILDCARE RECEIPTS),455450,-125,733644335
BEIS,Met Office,2021-06-01,11 SERVICES,PEOPLE,SODEXO MOT SOL UK  LTD (CHILDCARE RECEIPTS),455452,-125,733644335
BEIS,Met Office,2021-06-01,11 SERVICES,PEOPLE,SODEXO MOT SOL UK  LTD (CHILDCARE RECEIPTS),455455,-125,733644335
BEIS,Met Office,2021-06-01,11 SERVICES,PEOPLE,SODEXO MOT SOL UK  LTD (CHILDCARE RECEIPTS),455456,-119.07,733644335
BEIS,Met Office,2021-06-02,13 MISCELLANEOUS,CHIEF FINANCIAL OFFICER,POSTURITE (UK) LTD,455464,51.66,583565114
BEIS,Met Office,2021-06-09,06 ACCOMMODATION,CHIEF FINANCIAL OFFICER,COLES COURTYARD - NICOLE SHAMIER,455489,509.55,-
BEIS,Met Office,2021-06-09,11 SERVICES,PEOPLE,HAWK INCENTIVES LTD,455499,5743.5,238839422
BEIS,Met Office,2021-06-02,13 MISCELLANEOUS,CHIEF FINANCIAL OFFICER,POSTURITE (UK) LTD,455518,680.14,583565114
BEIS,Met Office,2021-06-02,13 MISCELLANEOUS,CHIEF FINANCIAL OFFICER,POSTURITE (UK) LTD,455526,39.06,583565114
BEIS,Met Office,2021-06-02,13 MISCELLANEOUS,CHIEF FINANCIAL OFFICER,POSTURITE (UK) LTD,455527,79.77,583565114
BEIS,Met Office,2021-06-11,STOCK,SERVICES,Goldisc Limited,455530,1700,861294416
BEIS,Met Office,2021-06-11,11 SERVICES,SERVICES,Goldisc Limited,455530,80,861294416
BEIS,Met Office,2021-06-28,11 SERVICES,PROGRAMMES,University of Edinburgh,455653,197219.72,592950700
BEIS,Met Office,2021-06-02,11 SERVICES,CHIEF FINANCIAL OFFICER,MITIE SECURITY LTD,455656,751.9,416706654
BEIS,Met Office,2021-06-02,11 SERVICES,CHIEF FINANCIAL OFFICER,MITIE SECURITY LTD,455657,58.4,416706654
BEIS,Met Office,2021-06-21,03 STAFF COSTS T&S,SERVICES,CARTUS LTD,455661,241.43,768489458
BEIS,Met Office,2021-06-30,11 SERVICES,MARKETS,University Of Reading,455698,8032.44,200012659
BEIS,Met Office,2021-06-18,11 SERVICES,PROGRAMMES,PRISM INFOSEC LTD,455781,3200,GB 879 7957 24
BEIS,Met Office,2021-06-21,03 STAFF COSTS T&S,SERVICES,CARTUS LTD,455785,2494.76,768489458
BEIS,Met Office,2021-06-02,11 SERVICES,TECHNOLOGY AND CIO,COMPUTACENTER (UK) LTD,455788,10.19,490334648
BEIS,Met Office,2021-06-21,11 SERVICES,MARKETS,DRIVE CREATIVE STUDIO LTD,455792,350,167656860
BEIS,Met Office,2021-06-02,11 SERVICES,CHIEF FINANCIAL OFFICER,SWISSCOM (SCHWEIZ) AG,455798,87.09,-
BEIS,Met Office,2021-06-21,CYCLESCHEME,OTHER,EDENRED UK (CYCLESCHEME),455812,5295.73,649 503 520
BEIS,Met Office,2021-06-02,13 MISCELLANEOUS,SCIENCE,University Of Oxford,455826,-1000,125506730
BEIS,Met Office,2021-06-09,11 SERVICES,MARKETS,Eumetsat,455905,8000,VE
BEIS,Met Office,2021-06-18,11 SERVICES,MARKETS,University College London,455924,2850,524371168
BEIS,Met Office,2021-06-02,08 SOFTWARE LICENCES,CHIEF FINANCIAL OFFICER,LIFTSHARE.COM LTD,456248,3031.88,765029619
BEIS,Met Office,2021-06-01,11 SERVICES,PEOPLE,SODEXO MOT SOL UK  LTD (CHILDCARE RECEIPTS),456300,-125,733644335
BEIS,Met Office,2021-06-04,11 SERVICES,TECHNOLOGY AND CIO,BAE SYSTEMS APPLIED INTELLIGENCE LIMITED,456333,9240,GB641407169
BEIS,Met Office,2021-06-04,11 SERVICES,PROGRAMMES,BAE SYSTEMS APPLIED INTELLIGENCE LIMITED,456334,8442,GB641407169
BEIS,Met Office,2021-06-04,11 SERVICES,TECHNOLOGY AND CIO,BAE SYSTEMS APPLIED INTELLIGENCE LIMITED,456335,16884,GB641407169
BEIS,Met Office,2021-06-04,11 SERVICES,PROGRAMMES,BAE SYSTEMS APPLIED INTELLIGENCE LIMITED,456336,11220,GB641407169
BEIS,Met Office,2021-06-04,11 SERVICES,TECHNOLOGY AND CIO,BAE SYSTEMS APPLIED INTELLIGENCE LIMITED,456337,10279.76,GB641407169
BEIS,Met Office,2021-06-04,11 SERVICES,PROGRAMMES,BAE SYSTEMS APPLIED INTELLIGENCE LIMITED,456338,14101.86,GB641407169
BEIS,Met Office,2021-06-04,11 SERVICES,TECHNOLOGY AND CIO,BAE SYSTEMS APPLIED INTELLIGENCE LIMITED,456339,12194,GB641407169
BEIS,Met Office,2021-06-23,11 SERVICES,CHIEF FINANCIAL OFFICER,British Red Cross Society,456343,700,706926227
BEIS,Met Office,2021-06-04,11 SERVICES,TECHNOLOGY AND CIO,BAE SYSTEMS APPLIED INTELLIGENCE LIMITED,456400,9900,GB641407169
BEIS,Met Office,2021-06-04,11 SERVICES,TECHNOLOGY AND CIO,BAE SYSTEMS APPLIED INTELLIGENCE LIMITED,456401,10279.76,GB641407169
BEIS,Met Office,2021-06-04,11 SERVICES,TECHNOLOGY AND CIO,BAE SYSTEMS APPLIED INTELLIGENCE LIMITED,456404,6695.37,GB641407169
BEIS,Met Office,2021-06-11,11 SERVICES,PROGRAMMES,University Of Reading,456448,166497.09,200012659
BEIS,Met Office,2021-06-02,11 SERVICES,PEOPLE,LB TRAINING LTD,456450,395,-
BEIS,Met Office,2021-06-21,11 SERVICES,PEOPLE,REDACTED PERSONAL DATA,456504,3630,143043312
BEIS,Met Office,2021-06-04,06 ACCOMMODATION,CHIEF FINANCIAL OFFICER,British Gas Trading Ltd,456508,5985.63,684966762
BEIS,Met Office,2021-06-07,06 ACCOMMODATION,CHIEF FINANCIAL OFFICER,Northern Ireland Water,456514,5200,898746537
BEIS,Met Office,2021-06-23,08 SOFTWARE LICENCES,TECHNOLOGY AND CIO,SIGNAVIO GMBH,456564,30833.33,DE265675123
BEIS,Met Office,2021-06-09,11 SERVICES,PEOPLE,CIVICA UK LIMITED,456568,394.46,391171065
BEIS,Met Office,2021-06-09,11 SERVICES,PEOPLE,CIVICA UK LIMITED,456569,280.36,391171065
BEIS,Met Office,2021-06-02,INFORMATION TECHNOLOGY,TECHNOLOGY AND CIO,COMPUTACENTER (UK) LTD,456571,784.6,490334648
BEIS,Met Office,2021-06-09,13 MISCELLANEOUS,SERVICES,DBS FINANCE RECEIPTS CTS,456573,30,888805068
BEIS,Met Office,2021-06-02,11 SERVICES,PEOPLE,HAWK INCENTIVES LTD,456574,50804.25,238839422
BEIS,Met Office,2021-06-04,11 SERVICES,TECHNOLOGY AND CIO,BAE SYSTEMS APPLIED INTELLIGENCE LIMITED,456582,10560,GB641407169
BEIS,Met Office,2021-06-02,06 ACCOMMODATION,CHIEF FINANCIAL OFFICER,Biffa Waste Services Ltd,456585,177.11,537911627
BEIS,Met Office,2021-06-02,06 ACCOMMODATION,CHIEF FINANCIAL OFFICER,Biffa Waste Services Ltd,456586,643.55,537911627
BEIS,Met Office,2021-06-02,06 ACCOMMODATION,CHIEF FINANCIAL OFFICER,Biffa Waste Services Ltd,456587,61.1,537911627
BEIS,Met Office,2021-06-02,06 ACCOMMODATION,CHIEF FINANCIAL OFFICER,Biffa Waste Services Ltd,456588,146.95,537911627
BEIS,Met Office,2021-06-02,06 ACCOMMODATION,CHIEF FINANCIAL OFFICER,Biffa Waste Services Ltd,456589,378.04,537911627
BEIS,Met Office,2021-06-02,06 ACCOMMODATION,CHIEF FINANCIAL OFFICER,Biffa Waste Services Ltd,456590,620.02,537911627
BEIS,Met Office,2021-06-02,06 ACCOMMODATION,CHIEF FINANCIAL OFFICER,Biffa Waste Services Ltd,456591,262.47,537911627
BEIS,Met Office,2021-06-02,06 ACCOMMODATION,CHIEF FINANCIAL OFFICER,Biffa Waste Services Ltd,456592,618.07,537911627
BEIS,Met Office,2021-06-02,06 ACCOMMODATION,CHIEF FINANCIAL OFFICER,ST MODWEN VENTURES LTD,456602,548.22,975081008
BEIS,Met Office,2021-06-02,13 MISCELLANEOUS,CHIEF FINANCIAL OFFICER,NORSCOTT VENDING SERVICES LTD,456603,27.8,751402071
BEIS,Met Office,2021-06-09,11 SERVICES,MARKETS,UNIVERSITY OF FLORIDA BOARD OF TRUSTEES,456610,108755.56,-
BEIS,Met Office,2021-06-02,11 SERVICES,CHIEF FINANCIAL OFFICER,BT plc,456611,876.22,245719348
BEIS,Met Office,2021-06-04,11 SERVICES,MARKETS,CENTRO INTERNACIONAL MEJORAMIENTO DE MAIZ Y T,456616,11986,CIM890330FI8
BEIS,Met Office,2021-06-04,FIXTURE & FITTINGS,CHIEF FINANCIAL OFFICER,CBRE MANAGED SERVICES LTD,456648,10218.4,853936883
BEIS,Met Office,2021-06-30,11 SERVICES,PEOPLE,PTR ASSOCIATES LTD,456649,4350,532192956
BEIS,Met Office,2021-06-14,06 ACCOMMODATION,CHIEF FINANCIAL OFFICER,CBRE MANAGED SERVICES LTD,456650,27719.87,853936883
BEIS,Met Office,2021-06-14,06 ACCOMMODATION,CHIEF FINANCIAL OFFICER,CBRE MANAGED SERVICES LTD,456650,5008.39,853936883
BEIS,Met Office,2021-06-02,06 ACCOMMODATION,CHIEF FINANCIAL OFFICER,CBRE MANAGED SERVICES LTD,456651,24566.22,853936883
BEIS,Met Office,2021-06-02,06 ACCOMMODATION,CHIEF FINANCIAL OFFICER,CBRE MANAGED SERVICES LTD,456652,141920.1,853936883
BEIS,Met Office,2021-06-02,11 SERVICES,MARKETS,ULTRA ELECTRONICS LTD NUCLEAR CONTROL SYSTEMS,456653,232304.64,123340754
BEIS,Met Office,2021-06-02,13 MISCELLANEOUS,PEOPLE,HEALTH MANAGEMENT LTD,456655,1940.58,792250621
BEIS,Met Office,2021-06-02,13 MISCELLANEOUS,PEOPLE,HEALTH MANAGEMENT LTD,456657,2796.8,792250621
BEIS,Met Office,2021-06-18,11 SERVICES,CHIEF FINANCIAL OFFICER,MITIE SECURITY LTD,456659,240,416706654
BEIS,Met Office,2021-06-02,11 SERVICES,CHIEF FINANCIAL OFFICER,MITIE SECURITY LTD,456660,10263.36,416706654
BEIS,Met Office,2021-06-02,11 SERVICES,CHIEF FINANCIAL OFFICER,MITIE SECURITY LTD,456661,20526.35,416706654
BEIS,Met Office,2021-06-02,11 SERVICES,PEOPLE,SOURCE COACHING CONSULTANCY,456710,1340,170422048
BEIS,Met Office,2021-06-02,04 CONTRACTORS,MARKETS,HAYS SPECIALIST RECRUITMENT LTD,456711,371.7,773695871
BEIS,Met Office,2021-06-02,04 CONTRACTORS,PEOPLE,HAYS SPECIALIST RECRUITMENT LTD,456712,483.22,773695871
BEIS,Met Office,2021-06-02,06 ACCOMMODATION,CHIEF FINANCIAL OFFICER,TULLY FARM HOLDINGS T/A CONTRACT SERVICES,456713,-996.11,872632707
BEIS,Met Office,2021-06-02,13 MISCELLANEOUS,CHIEF FINANCIAL OFFICER,EDEN SPRINGS UK LTD,456714,332.91,232160411
BEIS,Met Office,2021-06-02,13 MISCELLANEOUS,CHIEF FINANCIAL OFFICER,EDEN SPRINGS UK LTD,456715,531.75,232160411
BEIS,Met Office,2021-06-02,13 MISCELLANEOUS,CHIEF FINANCIAL OFFICER,EDEN SPRINGS UK LTD,456716,480.4,232160411
BEIS,Met Office,2021-06-02,13 MISCELLANEOUS,CHIEF FINANCIAL OFFICER,EDEN SPRINGS UK LTD,456717,304.94,232160411
BEIS,Met Office,2021-06-02,06 ACCOMMODATION,CHIEF FINANCIAL OFFICER,Mitie Landscapes Ltd,456718,56.9,GB 416 706 654
BEIS,Met Office,2021-06-02,06 ACCOMMODATION,CHIEF FINANCIAL OFFICER,BIDVEST NOONAN UK LTD,456719,395.68,GB847176988
BEIS,Met Office,2021-06-02,13 MISCELLANEOUS,SCIENCE,University Of Oxford,456720,250,125506730
BEIS,Met Office,2021-06-02,06 ACCOMMODATION,CHIEF FINANCIAL OFFICER,BIDVEST NOONAN UK LTD,456721,890.6,GB847176988
BEIS,Met Office,2021-06-02,04 CONTRACTORS,PEOPLE,MATRIX SCM LIMITED,456722,245310.02,249 5734 68
BEIS,Met Office,2021-06-21,11 SERVICES,MARKETS,COPYRIGHT LICENSING AGENCY LTD,456723,9759,386463025
BEIS,Met Office,2021-06-02,08 SOFTWARE LICENCES,TECHNOLOGY AND CIO,PRESENTATION CARTOGRAPHY LTD,456724,2250,-
BEIS,Met Office,2021-06-02,07 EQUIPMENT,PEOPLE,LEARNING POOL LIMITED,456725,3000,882389379
BEIS,Met Office,2021-06-04,13 MISCELLANEOUS,CHIEF FINANCIAL OFFICER,EDEN SPRINGS UK LTD,456726,7.03,232160411
BEIS,Met Office,2021-06-04,13 MISCELLANEOUS,CHIEF FINANCIAL OFFICER,EDEN SPRINGS UK LTD,456726,8.05,232160411
BEIS,Met Office,2021-06-04,13 MISCELLANEOUS,CHIEF FINANCIAL OFFICER,EDEN SPRINGS UK LTD,456726,271.56,232160411
BEIS,Met Office,2021-06-04,13 MISCELLANEOUS,CHIEF FINANCIAL OFFICER,EDEN SPRINGS UK LTD,456726,41.8,232160411
BEIS,Met Office,2021-06-02,11 SERVICES,TECHNOLOGY AND CIO,COMPUTACENTER (UK) LTD,456727,-10.19,490334648
BEIS,Met Office,2021-06-02,FIXTURE & FITTINGS,CHIEF FINANCIAL OFFICER,PROTEC FIRE & SECURITY GROUP LTD,456728,3954.58,175446935
BEIS,Met Office,2021-06-02,11 SERVICES,TECHNOLOGY AND CIO,DMARCIAN EUROPE BV,456729,5250,NL852616879B01
BEIS,Met Office,2021-06-02,11 SERVICES,CHIEF FINANCIAL OFFICER,LEASEDRIVE RENTAL MANAGEMENT LTD,456730,400.29,733546040
BEIS,Met Office,2021-06-02,11 SERVICES,CHIEF FINANCIAL OFFICER,WEBEX COMMUNICATIONS UK LTD,456731,209.92,815974302
BEIS,Met Office,2021-06-02,04 CONTRACTORS,PEOPLE,HAYS SPECIALIST RECRUITMENT LTD,456733,126.56,773695871
BEIS,Met Office,2021-06-02,04 CONTRACTORS,TECHNOLOGY AND CIO,HAYS SPECIALIST RECRUITMENT LTD,456734,567.59,773695871
BEIS,Met Office,2021-06-28,13 MISCELLANEOUS,CHIEF FINANCIAL OFFICER,POSTURITE (UK) LTD,456736,50,583565114
BEIS,Met Office,2021-06-02,11 SERVICES,MARKETS,THREE BLIND MICE LTD,456737,3000,GB 645 434 730
BEIS,Met Office,2021-06-02,11 SERVICES,PEOPLE,LB TRAINING LTD,456738,790,-
BEIS,Met Office,2021-06-02,13 MISCELLANEOUS,SCIENCE,University Of Reading,456739,1262.5,200012659
BEIS,Met Office,2021-06-02,11 SERVICES,PROGRAMMES,SSE CONTRACTING LTD,456740,10333.58,570118464
BEIS,Met Office,2021-06-30,11 SERVICES,PEOPLE,LUMESSE LTD,456744,3450,115096236
BEIS,Met Office,2021-06-02,13 MISCELLANEOUS,SERVICES,IMAGETEK SYSTEMS LTD,456745,2971.02,GB586331424
BEIS,Met Office,2021-06-02,11 SERVICES,TECHNOLOGY AND CIO,COMPUTACENTER (UK) LTD,456746,70954.3,490334648
BEIS,Met Office,2021-06-02,11 SERVICES,PEOPLE,LB TRAINING LTD,456747,395,-
BEIS,Met Office,2021-06-02,08 SOFTWARE LICENCES,TECHNOLOGY AND CIO,COMPUTACENTER (UK) LTD,456748,1081.77,490334648
BEIS,Met Office,2021-06-04,13 MISCELLANEOUS,CHIEF FINANCIAL OFFICER,CANON UK LTD,456749,0.84,523797128
BEIS,Met Office,2021-06-02,11 SERVICES,PEOPLE,BI-DESIGN EUROPE LTD T/A HOME,456751,1771,-
BEIS,Met Office,2021-06-04,06 ACCOMMODATION,CHIEF FINANCIAL OFFICER,EDF ENERGY CUSTOMERS PLC,456752,109866.65,523041202
BEIS,Met Office,2021-06-04,06 ACCOMMODATION,CHIEF FINANCIAL OFFICER,EDF ENERGY CUSTOMERS PLC,456753,-109230.74,523041202
BEIS,Met Office,2021-06-04,06 ACCOMMODATION,CHIEF FINANCIAL OFFICER,EDF ENERGY CUSTOMERS PLC,456754,-110388.2,523041202
BEIS,Met Office,2021-06-04,06 ACCOMMODATION,CHIEF FINANCIAL OFFICER,EDF ENERGY CUSTOMERS PLC,456755,111027.45,523041202
BEIS,Met Office,2021-06-02,07 EQUIPMENT,SCIENCE,CAMTEC ENGINEERING LTD,456758,96,527033861
BEIS,Met Office,2021-06-02,07 EQUIPMENT,SCIENCE,CAMTEC ENGINEERING LTD,456758,230,527033861
BEIS,Met Office,2021-06-02,07 EQUIPMENT,SCIENCE,CAMTEC ENGINEERING LTD,456758,20,527033861
BEIS,Met Office,2021-06-02,07 EQUIPMENT,SCIENCE,CAMTEC ENGINEERING LTD,456758,356,527033861
BEIS,Met Office,2021-06-02,07 EQUIPMENT,SCIENCE,CAMTEC ENGINEERING LTD,456758,220,527033861
BEIS,Met Office,2021-06-02,07 EQUIPMENT,SCIENCE,CAMTEC ENGINEERING LTD,456758,64,527033861
BEIS,Met Office,2021-06-02,07 EQUIPMENT,SCIENCE,CAMTEC ENGINEERING LTD,456758,82,527033861
BEIS,Met Office,2021-06-23,11 SERVICES,PEOPLE,FALCON.IO,456759,4522.5,DK 3336 2226
BEIS,Met Office,2021-06-23,11 SERVICES,SERVICES,FALCON.IO,456759,11272.5,DK 3336 2226
BEIS,Met Office,2021-06-02,06 ACCOMMODATION,CHIEF FINANCIAL OFFICER,RIVER RIDGE,456760,50,176286083
BEIS,Met Office,2021-06-02,08 SOFTWARE LICENCES,TECHNOLOGY AND CIO,COMPUTACENTER (UK) LTD,456761,180011.16,490334648
BEIS,Met Office,2021-06-02,08 SOFTWARE LICENCES,TECHNOLOGY AND CIO,COMPUTACENTER (UK) LTD,456761,58272.64,490334648
BEIS,Met Office,2021-06-02,08 SOFTWARE LICENCES,TECHNOLOGY AND CIO,COMPUTACENTER (UK) LTD,456761,69940.15,490334648
BEIS,Met Office,2021-06-02,08 SOFTWARE LICENCES,TECHNOLOGY AND CIO,COMPUTACENTER (UK) LTD,456761,25209.86,490334648
BEIS,Met Office,2021-06-02,11 SERVICES,TECHNOLOGY AND CIO,COMPUTACENTER (UK) LTD,456761,48894,490334648
BEIS,Met Office,2021-06-02,08 SOFTWARE LICENCES,TECHNOLOGY AND CIO,COMPUTACENTER (UK) LTD,456762,2037.92,490334648
BEIS,Met Office,2021-06-04,11 SERVICES,MARKETS,ADOPSTAR,456763,1250,115036848
BEIS,Met Office,2021-06-02,11 SERVICES,CHIEF FINANCIAL OFFICER,LICENCE BUREAU LTD,456764,52,820219467
BEIS,Met Office,2021-06-02,13 MISCELLANEOUS,CHIEF FINANCIAL OFFICER,BANNER GROUP LIMITED,456765,3.15,GB391085740
BEIS,Met Office,2021-06-02,03 STAFF COSTS T&S,CHIEF FINANCIAL OFFICER,ENTERPRISE RENT A CAR UK LTD,456766,1040.07,215557314
BEIS,Met Office,2021-06-04,13 MISCELLANEOUS,CHIEF FINANCIAL OFFICER,POSTURITE (UK) LTD,456767,50,583565114
BEIS,Met Office,2021-06-04,13 MISCELLANEOUS,CHIEF FINANCIAL OFFICER,POSTURITE (UK) LTD,456768,50,583565114
BEIS,Met Office,2021-06-04,13 MISCELLANEOUS,CHIEF FINANCIAL OFFICER,POSTURITE (UK) LTD,456769,641.08,583565114
BEIS,Met Office,2021-06-23,11 SERVICES,PEOPLE,OLD FROG LTD,456770,2820,642591532
BEIS,Met Office,2021-06-04,11 SERVICES,PROGRAMMES,BJSS LIMITED,456771,17000,613295452
BEIS,Met Office,2021-06-02,11 SERVICES,PROGRAMMES,Dstl,456772,10952.78,888805166
BEIS,Met Office,2021-06-04,06 ACCOMMODATION,CHIEF FINANCIAL OFFICER,PLYMOUTH CITY COUNCIL NDR,456773,3542.9,-
BEIS,Met Office,2021-06-01,11 SERVICES,PEOPLE,SODEXO MOT SOL UK  LTD (CHILDCARE RECEIPTS),456774,1000,733644335
BEIS,Met Office,2021-06-02,11 SERVICES,TECHNOLOGY AND CIO,UKCLOUD LTD,456776,545.79,172647982
BEIS,Met Office,2021-06-02,11 SERVICES,TECHNOLOGY AND CIO,UKCLOUD LTD,456776,1112.61,172647982
BEIS,Met Office,2021-06-04,13 MISCELLANEOUS,PEOPLE,CABINET OFFICE - COF LEAD ACCOUNT,456777,18209.3,-
BEIS,Met Office,2021-06-07,11 SERVICES,TECHNOLOGY AND CIO,WIREFAST LTD,456778,3802.21,749536001
BEIS,Met Office,2021-06-02,11 SERVICES,SERVICES,UK TELEMATICS LIMITED,456779,2348.64,GB763051643
BEIS,Met Office,2021-06-07,11 SERVICES,SERVICES,Trinity House,456780,55782.18,243120414
BEIS,Met Office,2021-06-11,11 SERVICES,SERVICES,Trinity House,456781,21205.37,243120414
BEIS,Met Office,2021-06-04,12 INTERNATIONAL,MARKETS,FCDO SERVICES,456782,6439.93,888848729
BEIS,Met Office,2021-06-04,12 INTERNATIONAL,MARKETS,FCDO SERVICES,456783,652.87,888848729
BEIS,Met Office,2021-06-09,11 SERVICES,CHIEF FINANCIAL OFFICER,CARDIFF EXECUTIVE CENTRE LTD,456784,-2470,864497378
BEIS,Met Office,2021-06-09,11 SERVICES,CHIEF FINANCIAL OFFICER,CARDIFF EXECUTIVE CENTRE LTD,456785,3.6,864497378
BEIS,Met Office,2021-06-02,06 ACCOMMODATION,CHIEF FINANCIAL OFFICER,THE CLEANING CREW COMPANY,456786,295.87,343579772
BEIS,Met Office,2021-06-02,11 SERVICES,CHIEF FINANCIAL OFFICER,ALLSTAR BUSINESS SOLUTIONS LTD,456788,2577.78,747880191
BEIS,Met Office,2021-06-09,06 ACCOMMODATION,CHIEF FINANCIAL OFFICER,NEDERMAN LTD,456789,259,108222647
BEIS,Met Office,2021-06-04,06 ACCOMMODATION,CHIEF FINANCIAL OFFICER,HIGHLANDS & ISLANDS AIRPORTS LTD.,456790,200,945667772
BEIS,Met Office,2021-06-14,STOCK,SERVICES,Campbell Scientific Ltd,456791,0,428453933
BEIS,Met Office,2021-06-14,STOCK,SERVICES,Campbell Scientific Ltd,456791,0,428453933
BEIS,Met Office,2021-06-14,STOCK,SERVICES,Campbell Scientific Ltd,456791,0,428453933
BEIS,Met Office,2021-06-14,TRADE CREDITORS,SERVICES,Campbell Scientific Ltd,456791,20109.6,428453933
BEIS,Met Office,2021-06-14,TRADE CREDITORS,SERVICES,Campbell Scientific Ltd,456791,518.4,428453933
BEIS,Met Office,2021-06-14,TRADE CREDITORS,SERVICES,Campbell Scientific Ltd,456791,2065.5,428453933
BEIS,Met Office,2021-06-14,11 SERVICES,SERVICES,Campbell Scientific Ltd,456791,96,428453933
BEIS,Met Office,2021-06-04,11 SERVICES,PROGRAMMES,ROWE IT LTD,456792,14250,924964394
BEIS,Met Office,2021-06-07,11 SERVICES,MARKETS,ROWE IT LTD,456793,5700,924964394
BEIS,Met Office,2021-06-07,11 SERVICES,MARKETS,MOMENTUM INCORPORATED,456794,12800,598958541
BEIS,Met Office,2021-06-11,11 SERVICES,PEOPLE,BROADBEAN TECHNOLOGY LTD,456795,9999,GB184088778
BEIS,Met Office,2021-06-04,11 SERVICES,CHIEF FINANCIAL OFFICER,MITIE SECURITY LTD,456796,1466.04,416706654
BEIS,Met Office,2021-06-02,04 CONTRACTORS,OFFICE OF THE CEO,JOBSEEKERS RECRUITMENT SERVICES LTD,456797,674.88,130 1297 14
BEIS,Met Office,2021-06-02,04 CONTRACTORS,PEOPLE,JOBSEEKERS RECRUITMENT SERVICES LTD,456798,676.36,130 1297 14
BEIS,Met Office,2021-06-07,08 SOFTWARE LICENCES,TECHNOLOGY AND CIO,GOOGLE IRELAND LTD,456799,32.09,6388047V
BEIS,Met Office,2021-06-04,08 SOFTWARE LICENCES,TECHNOLOGY AND CIO,Ibm United Kingdom Ltd,456800,8655.7,107328000
BEIS,Met Office,2021-06-02,04 CONTRACTORS,MARKETS,JOBSEEKERS RECRUITMENT SERVICES LTD,456801,674.88,130 1297 14
BEIS,Met Office,2021-06-02,04 CONTRACTORS,PEOPLE,JOBSEEKERS RECRUITMENT SERVICES LTD,456802,635.23,130 1297 14
BEIS,Met Office,2021-06-02,04 CONTRACTORS,CHIEF FINANCIAL OFFICER,JOBSEEKERS RECRUITMENT SERVICES LTD,456804,401.28,130 1297 14
BEIS,Met Office,2021-06-02,04 CONTRACTORS,MARKETS,JOBSEEKERS RECRUITMENT SERVICES LTD,456805,674.88,130 1297 14
BEIS,Met Office,2021-06-02,04 CONTRACTORS,CHIEF FINANCIAL OFFICER,JOBSEEKERS RECRUITMENT SERVICES LTD,456806,410.4,130 1297 14
BEIS,Met Office,2021-06-09,11 SERVICES,CHIEF FINANCIAL OFFICER,MITIE SECURITY LTD,456807,58.4,416706654
BEIS,Met Office,2021-06-09,11 SERVICES,CHIEF FINANCIAL OFFICER,MITIE SECURITY LTD,456808,472.42,416706654
BEIS,Met Office,2021-06-09,11 SERVICES,CHIEF FINANCIAL OFFICER,MITIE SECURITY LTD,456808,388.98,416706654
BEIS,Met Office,2021-06-04,13 MISCELLANEOUS,CHIEF FINANCIAL OFFICER,EAST ANGLIAN WATER COOLER CO,456872,32.1,676668178
BEIS,Met Office,2021-06-09,12 INTERNATIONAL,MARKETS,MACITECHSY SOLUTIONS,456873,827.2,-
BEIS,Met Office,2021-06-09,12 INTERNATIONAL,MARKETS,MACITECHSY SOLUTIONS,456873,125,-
BEIS,Met Office,2021-06-09,11 SERVICES,TECHNOLOGY AND CIO,ELASTICSEARCH LTD,456874,19434.86,155790484
BEIS,Met Office,2021-06-04,03 STAFF COSTS T&S,CHIEF FINANCIAL OFFICER,RAINBOW CITY TAXIS,456875,14.8,724295039
BEIS,Met Office,2021-06-04,11 SERVICES,PROGRAMMES,ROWE IT LTD,456876,95381.25,924964394
BEIS,Met Office,2021-06-04,11 SERVICES,PROGRAMMES,ROWE IT LTD,456877,43930,924964394
BEIS,Met Office,2021-06-04,06 ACCOMMODATION,CHIEF FINANCIAL OFFICER,OCS Group UK Limited,456878,16189.8,GB238034379
BEIS,Met Office,2021-06-04,06 ACCOMMODATION,CHIEF FINANCIAL OFFICER,OCS Group UK Limited,456878,109308.18,GB238034379
BEIS,Met Office,2021-06-07,03 STAFF COSTS T&S,SERVICES,CHARLIE'S TRAVEL LTD,456879,871,783848277
BEIS,Met Office,2021-06-07,03 STAFF COSTS T&S,SERVICES,CHARLIE'S TRAVEL LTD,456879,1007.33,783848277
BEIS,Met Office,2021-06-09,11 SERVICES,MARKETS,University Of Leeds,456880,3259.98,613451470
BEIS,Met Office,2021-06-09,11 SERVICES,PROGRAMMES,ROWE IT LTD,456881,14936.25,924964394
BEIS,Met Office,2021-06-09,11 SERVICES,PROGRAMMES,ROWE IT LTD,456882,42537.5,924964394
BEIS,Met Office,2021-06-09,11 SERVICES,PROGRAMMES,ROWE IT LTD,456883,19992.5,924964394
BEIS,Met Office,2021-06-04,11 SERVICES,MARKETS,CACI LTD,456884,80287.47,380609841
BEIS,Met Office,2021-06-09,04 CONTRACTORS,PEOPLE,MATRIX SCM LIMITED,456885,210455,249 5734 68
BEIS,Met Office,2021-06-23,INFORMATION TECHNOLOGY,PROGRAMMES,COMPUTACENTER (UK) LTD,456886,-24.32,490334648
BEIS,Met Office,2021-06-07,11 SERVICES,SERVICES,INMARSAT SOLUTIONS (CANADA) INC,456887,1387.24,766144223
BEIS,Met Office,2021-06-11,08 SOFTWARE LICENCES,PEOPLE,CATALYST IT,456888,2075,978169262
BEIS,Met Office,2021-06-07,06 ACCOMMODATION,CHIEF FINANCIAL OFFICER,EDF ENERGY CUSTOMERS PLC,456889,385388.43,523041202
BEIS,Met Office,2021-06-09,11 SERVICES,PEOPLE,CIVICA UK LIMITED,456890,7162.66,391171065
BEIS,Met Office,2021-06-07,06 ACCOMMODATION,CHIEF FINANCIAL OFFICER,EDF ENERGY CUSTOMERS PLC,456896,117723.48,523041202
BEIS,Met Office,2021-06-07,06 ACCOMMODATION,CHIEF FINANCIAL OFFICER,EDF ENERGY CUSTOMERS PLC,456897,121297.45,523041202
BEIS,Met Office,2021-06-11,13 MISCELLANEOUS,SCIENCE,University Of Reading,456900,333.34,200012659
BEIS,Met Office,2021-06-07,13 MISCELLANEOUS,SCIENCE,University Of Reading,456901,333.34,200012659
BEIS,Met Office,2021-06-07,13 MISCELLANEOUS,SCIENCE,University Of Reading,456902,333.34,200012659
BEIS,Met Office,2021-06-09,11 SERVICES,PEOPLE,CIVICA UK LIMITED,456903,1500,391171065
BEIS,Met Office,2021-06-09,CYCLESCHEME,OTHER,EDENRED UK (CYCLESCHEME),456904,5805.72,649 503 520
BEIS,Met Office,2021-06-07,06 ACCOMMODATION,CHIEF FINANCIAL OFFICER,TENNIE FACILITIES PROPERTY MANAGEMENT LTD,456905,179.53,982055803
BEIS,Met Office,2021-06-09,11 SERVICES,SERVICES,WORLDPAY LTD,456906,23.35,991280207
BEIS,Met Office,2021-06-07,INFORMATION TECHNOLOGY,TECHNOLOGY AND CIO,AKHTER COMPUTERS LTD,456907,832,532262963
BEIS,Met Office,2021-06-07,04 CONTRACTORS,TECHNOLOGY AND CIO,HAYS SPECIALIST RECRUITMENT LTD,456908,494.72,773695871
BEIS,Met Office,2021-06-07,04 CONTRACTORS,PEOPLE,HAYS SPECIALIST RECRUITMENT LTD,456909,126.56,773695871
BEIS,Met Office,2021-06-07,03 STAFF COSTS T&S,SERVICES,AIRPORT CAR RENTALS LTD,456910,320,-
BEIS,Met Office,2021-06-07,11 SERVICES,CHIEF FINANCIAL OFFICER,XUPER,456911,720,316677090
BEIS,Met Office,2021-06-07,11 SERVICES,CHIEF FINANCIAL OFFICER,XUPER,456911,825,316677090
BEIS,Met Office,2021-06-07,11 SERVICES,CHIEF FINANCIAL OFFICER,XUPER,456911,720,316677090
BEIS,Met Office,2021-06-07,11 SERVICES,CHIEF FINANCIAL OFFICER,XUPER,456911,720,316677090
BEIS,Met Office,2021-06-07,11 SERVICES,CHIEF FINANCIAL OFFICER,XUPER,456911,2412.75,316677090
BEIS,Met Office,2021-06-07,11 SERVICES,CHIEF FINANCIAL OFFICER,XUPER,456911,2295,316677090
BEIS,Met Office,2021-06-07,11 SERVICES,CHIEF FINANCIAL OFFICER,XUPER,456911,720,316677090
BEIS,Met Office,2021-06-07,11 SERVICES,CHIEF FINANCIAL OFFICER,XUPER,456911,720,316677090
BEIS,Met Office,2021-06-07,11 SERVICES,CHIEF FINANCIAL OFFICER,XUPER,456911,720,316677090
BEIS,Met Office,2021-06-07,11 SERVICES,CHIEF FINANCIAL OFFICER,XUPER,456911,660,316677090
BEIS,Met Office,2021-06-07,11 SERVICES,CHIEF FINANCIAL OFFICER,XUPER,456911,720,316677090
BEIS,Met Office,2021-06-07,11 SERVICES,CHIEF FINANCIAL OFFICER,XUPER,456911,450,316677090
BEIS,Met Office,2021-06-09,11 SERVICES,SERVICES,Boc Ltd,456912,8478.78,226556555
BEIS,Met Office,2021-06-09,11 SERVICES,TECHNOLOGY AND CIO,AKAMAI TECHNOLOGIES LTD,456913,4918.08,745091237
BEIS,Met Office,2021-06-09,11 SERVICES,TECHNOLOGY AND CIO,AKAMAI TECHNOLOGIES LTD,456913,25819.95,745091237
BEIS,Met Office,2021-06-07,PLANT AND EQUIPMENT,CHIEF FINANCIAL OFFICER,CBRE MANAGED SERVICES LTD,456914,14458.08,853936883
BEIS,Met Office,2021-06-16,11 SERVICES,PEOPLE,HOPSCOTCH CONSULTING,456915,7527,102099056
BEIS,Met Office,2021-06-21,11 SERVICES,PEOPLE,PSYCHOLOGICA,456941,3000,143530636
BEIS,Met Office,2021-06-07,06 ACCOMMODATION,CHIEF FINANCIAL OFFICER,GOVERNMENT PROPERTY AGENCY,456942,403.85,888 8508 47
BEIS,Met Office,2021-06-07,06 ACCOMMODATION,CHIEF FINANCIAL OFFICER,GOVERNMENT PROPERTY AGENCY,456943,901.5,888 8508 47
BEIS,Met Office,2021-06-07,11 SERVICES,PROGRAMMES,HOGAN LOVELLS INTERNATIONAL LLP,456944,1480.5,GB123371543
BEIS,Met Office,2021-06-23,11 SERVICES,PROGRAMMES,HOGAN LOVELLS INTERNATIONAL LLP,456945,49195.59,GB123371543
BEIS,Met Office,2021-06-23,11 SERVICES,PROGRAMMES,HOGAN LOVELLS INTERNATIONAL LLP,456945,26076.66,GB123371543
BEIS,Met Office,2021-06-23,11 SERVICES,PROGRAMMES,HOGAN LOVELLS INTERNATIONAL LLP,456945,48519.5,GB123371543
BEIS,Met Office,2021-06-07,11 SERVICES,PROGRAMMES,HOGAN LOVELLS INTERNATIONAL LLP,456946,237307.09,GB123371543
BEIS,Met Office,2021-06-07,11 SERVICES,PROGRAMMES,HOGAN LOVELLS INTERNATIONAL LLP,456947,66759.62,GB123371543
BEIS,Met Office,2021-06-07,11 SERVICES,PROGRAMMES,HOGAN LOVELLS INTERNATIONAL LLP,456948,424672.51,GB123371543
BEIS,Met Office,2021-06-07,11 SERVICES,PROGRAMMES,HOGAN LOVELLS INTERNATIONAL LLP,456949,172065.19,GB123371543
BEIS,Met Office,2021-06-07,11 SERVICES,PROGRAMMES,HOGAN LOVELLS INTERNATIONAL LLP,456950,1862.43,GB123371543
BEIS,Met Office,2021-06-07,11 SERVICES,PROGRAMMES,HOGAN LOVELLS INTERNATIONAL LLP,456951,104663.17,GB123371543
BEIS,Met Office,2021-06-07,11 SERVICES,PROGRAMMES,HOGAN LOVELLS INTERNATIONAL LLP,456951,1817.31,GB123371543
BEIS,Met Office,2021-06-07,11 SERVICES,PROGRAMMES,HOGAN LOVELLS INTERNATIONAL LLP,456951,11564.3,GB123371543
BEIS,Met Office,2021-06-07,11 SERVICES,PROGRAMMES,HOGAN LOVELLS INTERNATIONAL LLP,456951,298.86,GB123371543
BEIS,Met Office,2021-06-07,11 SERVICES,SERVICES,LB TRAINING LTD,456952,395,-
BEIS,Met Office,2021-06-07,11 SERVICES,SERVICES,LB TRAINING LTD,456953,790,-
BEIS,Met Office,2021-06-09,11 SERVICES,PROGRAMMES,JEREMY BENN ASSOCIATES LIMITED,456954,32679,GB 665300941
BEIS,Met Office,2021-06-28,11 SERVICES,MARKETS,Cgi It Uk Limited,456955,186682.7,232615194
BEIS,Met Office,2021-06-09,06 ACCOMMODATION,CHIEF FINANCIAL OFFICER,BUSINESS SUPPORT CENTRE LTD,456956,39.16,927365208
BEIS,Met Office,2021-06-07,04 CONTRACTORS,TECHNOLOGY AND CIO,GCS IT RECRUITMENT SPECIALISTS LTD,456957,14250,896156575
BEIS,Met Office,2021-06-09,11 SERVICES,PROGRAMMES,University Of Reading,456958,70690,200012659
BEIS,Met Office,2021-06-09,06 ACCOMMODATION,CHIEF FINANCIAL OFFICER,BUSINESS SUPPORT CENTRE LTD,456961,1027.28,927365208
BEIS,Met Office,2021-06-11,06 ACCOMMODATION,SERVICES,LHR BUSINESS SUPPORT CENTRE LTD,456963,129.02,927365404
BEIS,Met Office,2021-06-09,13 MISCELLANEOUS,SCIENCE,University of Edinburgh,456964,1000,592950700
BEIS,Met Office,2021-06-11,11 SERVICES,CHIEF FINANCIAL OFFICER,BT GLOBAL SERVICES,456965,14223.53,245719348
BEIS,Met Office,2021-06-11,06 ACCOMMODATION,CHIEF FINANCIAL OFFICER,ABOVE THE REST COMMERCIAL CLEANING LTD,456966,565,166969348
BEIS,Met Office,2021-06-11,06 ACCOMMODATION,CHIEF FINANCIAL OFFICER,NORSCOTT VENDING SERVICES LTD,456967,-42,751402071
BEIS,Met Office,2021-06-11,13 MISCELLANEOUS,CHIEF FINANCIAL OFFICER,BANNER GROUP LIMITED,456969,4.26,GB391085740
BEIS,Met Office,2021-06-11,13 MISCELLANEOUS,CHIEF FINANCIAL OFFICER,BANNER GROUP LIMITED,456970,15.32,GB391085740
BEIS,Met Office,2021-06-07,03 STAFF COSTS T&S,CHIEF FINANCIAL OFFICER,ENTERPRISE RENT A CAR UK LTD,456971,831.02,215557314
BEIS,Met Office,2021-06-11,06 ACCOMMODATION,CHIEF FINANCIAL OFFICER,CORONA ENERGY LTD,456972,633.6,577704800
BEIS,Met Office,2021-06-11,06 ACCOMMODATION,CHIEF FINANCIAL OFFICER,CORONA ENERGY LTD,456973,13996.33,577704800
BEIS,Met Office,2021-06-07,11 SERVICES,PROGRAMMES,RSM,456974,4950,890965570
BEIS,Met Office,2021-06-28,13 MISCELLANEOUS,CHIEF FINANCIAL OFFICER,POSTURITE (UK) LTD,456975,128.87,583565114
BEIS,Met Office,2021-06-11,11 SERVICES,MARKETS,ACCELERATION EMARKETING,456977,4116.76,848940776
BEIS,Met Office,2021-06-11,11 SERVICES,CHIEF FINANCIAL OFFICER,BT plc,456979,11770.4,245719348
BEIS,Met Office,2021-06-11,06 ACCOMMODATION,CHIEF FINANCIAL OFFICER,WEST LANCASHIRE BOROUGH COUNCIL,456985,128.5,-
BEIS,Met Office,2021-06-11,06 ACCOMMODATION,CHIEF FINANCIAL OFFICER,Biffa Waste Services Ltd,456986,114.68,537911627
BEIS,Met Office,2021-06-09,08 SOFTWARE LICENCES,TECHNOLOGY AND CIO,CLEARVISION (CM) LIMITED,456987,2278.2,881364801
BEIS,Met Office,2021-06-09,11 SERVICES,PROGRAMMES,University Of Cambridge,456988,10000,214222124
BEIS,Met Office,2021-06-09,11 SERVICES,TECHNOLOGY AND CIO,AMAZON WEB SERVICES UK LTD,456990,556,170 4318 31
BEIS,Met Office,2021-06-23,STOCK,SERVICES,PHOTONIC SOLUTIONS LTD,456991,0,724212864
BEIS,Met Office,2021-06-23,TRADE CREDITORS,SERVICES,PHOTONIC SOLUTIONS LTD,456991,11125,724212864
BEIS,Met Office,2021-06-23,11 SERVICES,SERVICES,PHOTONIC SOLUTIONS LTD,456991,25,724212864
BEIS,Met Office,2021-06-23,06 ACCOMMODATION,CHIEF FINANCIAL OFFICER,JAMES & MARCIA BENJAMIN,457015,520,-
BEIS,Met Office,2021-06-11,03 STAFF COSTS T&S,SERVICES,FALKLAND ISLAND COMPANY LTD,457016,65,N/A
BEIS,Met Office,2021-06-11,06 ACCOMMODATION,CHIEF FINANCIAL OFFICER,NORSCOTT VENDING SERVICES LTD,457017,85,751402071
BEIS,Met Office,2021-06-09,04 CONTRACTORS,TECHNOLOGY AND CIO,FDM GROUP LIMITED,457019,3780,583540529
BEIS,Met Office,2021-06-09,04 CONTRACTORS,TECHNOLOGY AND CIO,FDM GROUP LIMITED,457020,2358,583540529
BEIS,Met Office,2021-06-09,04 CONTRACTORS,TECHNOLOGY AND CIO,FDM GROUP LIMITED,457021,4860,583540529
BEIS,Met Office,2021-06-09,06 ACCOMMODATION,CHIEF FINANCIAL OFFICER,REDACTED PERSONAL DATA,457022,3754,001874305
BEIS,Met Office,2021-06-11,11 SERVICES,CHIEF FINANCIAL OFFICER,EXPONENTIAL-E,457023,1400.17,GB798572653
BEIS,Met Office,2021-06-09,04 CONTRACTORS,TECHNOLOGY AND CIO,FDM GROUP LIMITED,457024,5130,583540529
BEIS,Met Office,2021-06-09,04 CONTRACTORS,TECHNOLOGY AND CIO,FDM GROUP LIMITED,457025,4050,583540529
BEIS,Met Office,2021-06-09,04 CONTRACTORS,TECHNOLOGY AND CIO,FDM GROUP LIMITED,457026,5700,583540529
BEIS,Met Office,2021-06-09,04 CONTRACTORS,OFFICE OF THE CEO,JOBSEEKERS RECRUITMENT SERVICES LTD,457027,419.52,130 1297 14
BEIS,Met Office,2021-06-09,04 CONTRACTORS,PEOPLE,JOBSEEKERS RECRUITMENT SERVICES LTD,457028,539.26,130 1297 14
BEIS,Met Office,2021-06-09,04 CONTRACTORS,MARKETS,JOBSEEKERS RECRUITMENT SERVICES LTD,457029,538.08,130 1297 14
BEIS,Met Office,2021-06-09,04 CONTRACTORS,PEOPLE,JOBSEEKERS RECRUITMENT SERVICES LTD,457030,548.4,130 1297 14
BEIS,Met Office,2021-06-09,04 CONTRACTORS,CHIEF FINANCIAL OFFICER,JOBSEEKERS RECRUITMENT SERVICES LTD,457031,538.08,130 1297 14
BEIS,Met Office,2021-06-09,04 CONTRACTORS,MARKETS,JOBSEEKERS RECRUITMENT SERVICES LTD,457032,401.28,130 1297 14
BEIS,Met Office,2021-06-09,04 CONTRACTORS,CHIEF FINANCIAL OFFICER,JOBSEEKERS RECRUITMENT SERVICES LTD,457033,273.6,130 1297 14
BEIS,Met Office,2021-06-09,13 MISCELLANEOUS,SERVICES,Royal Meteorological Society,457034,325.6,-
BEIS,Met Office,2021-06-09,11 SERVICES,MARKETS,Bray Leino Ltd,457035,10129.93,135605525
BEIS,Met Office,2021-06-11,11 SERVICES,CHIEF FINANCIAL OFFICER,SURE SOUTH ATLANTIC LTD,457037,770,-
BEIS,Met Office,2021-06-09,04 CONTRACTORS,MARKETS,HAYS SPECIALIST RECRUITMENT LTD,457038,371.7,773695871
BEIS,Met Office,2021-06-09,04 CONTRACTORS,PEOPLE,HAYS SPECIALIST RECRUITMENT LTD,457039,373.5,773695871
BEIS,Met Office,2021-06-09,04 CONTRACTORS,MARKETS,HAYS SPECIALIST RECRUITMENT LTD,457040,371.7,773695871
BEIS,Met Office,2021-06-09,04 CONTRACTORS,PEOPLE,HAYS SPECIALIST RECRUITMENT LTD,457041,373.5,773695871
BEIS,Met Office,2021-06-11,11 SERVICES,MARKETS,BITPOD LIMITED,457045,2803.38,124 9359 03
BEIS,Met Office,2021-06-09,11 SERVICES,MARKETS,BITPOD LIMITED,457046,2689.13,124 9359 03
BEIS,Met Office,2021-06-11,11 SERVICES,MARKETS,UK FLIGHT SAFETY COMMITTEE,457047,100,-
BEIS,Met Office,2021-06-11,06 ACCOMMODATION,CHIEF FINANCIAL OFFICER,ACTIVE PEST MANAGEMENT,457048,86.1,791419116
BEIS,Met Office,2021-06-28,11 SERVICES,PEOPLE,EDENRED - CHILDCARE VOUCHERS,457050,-5,649 503 520
BEIS,Met Office,2021-06-28,11 SERVICES,PEOPLE,EDENRED - CHILDCARE VOUCHERS,457052,-5,649 503 520
BEIS,Met Office,2021-06-09,11 SERVICES,SCIENCE,BRUNEL SHIPPING & LINER SERVICES LTD,457053,5500,-
BEIS,Met Office,2021-06-11,07 EQUIPMENT,SERVICES,CARTER MANUFACTURING LIMITED,457055,5253.9,750 0259 62
BEIS,Met Office,2021-06-14,11 SERVICES,CHIEF FINANCIAL OFFICER,ANVIL MOBILE LIMITED,457056,82.6,981686175
BEIS,Met Office,2021-06-14,11 SERVICES,CHIEF FINANCIAL OFFICER,ANVIL MOBILE LIMITED,457056,98.6,981686175
BEIS,Met Office,2021-06-14,11 SERVICES,CHIEF FINANCIAL OFFICER,ANVIL MOBILE LIMITED,457056,111.3,981686175
BEIS,Met Office,2021-06-14,11 SERVICES,CHIEF FINANCIAL OFFICER,ANVIL MOBILE LIMITED,457056,34.85,981686175
BEIS,Met Office,2021-06-14,11 SERVICES,CHIEF FINANCIAL OFFICER,ANVIL MOBILE LIMITED,457056,43.6,981686175
BEIS,Met Office,2021-06-16,11 SERVICES,MARKETS,ULTRA ELECTRONICS LTD NUCLEAR CONTROL SYSTEMS,457057,81000,123340754
BEIS,Met Office,2021-06-09,11 SERVICES,TECHNOLOGY AND CIO,BOXXE,457058,484,734245248
BEIS,Met Office,2021-06-09,10 EQUIPMENT MAINTENANCE,TECHNOLOGY AND CIO,ORACLE CORPORATION UK LTD,457059,20650.46,391313073
BEIS,Met Office,2021-06-09,11 SERVICES,MARKETS,SPOKE (INTERACTIVE) LTD,457066,700,840156451
BEIS,Met Office,2021-06-11,03 STAFF COSTS T&S,SERVICES,CARTUS LTD,457067,137,768489458
BEIS,Met Office,2021-06-11,11 SERVICES,CHIEF FINANCIAL OFFICER,SURE SOUTH ATLANTIC LTD,457068,1200.28,NOVATREG
BEIS,Met Office,2021-06-11,11 SERVICES,CHIEF FINANCIAL OFFICER,GAMMA TELECOM LTD,457069,98.44,823820344
BEIS,Met Office,2021-06-11,11 SERVICES,CHIEF FINANCIAL OFFICER,GAMMA TELECOM LTD,457069,26723.83,823820344
BEIS,Met Office,2021-06-14,11 SERVICES,CHIEF FINANCIAL OFFICER,TELEFONICA O2 UK LIMITED,457070,8285.02,778603785
BEIS,Met Office,2021-06-09,PAYE AND VAT,OTHER,CARDIFF EXECUTIVE CENTRE LTD,457071,494,864497378
BEIS,Met Office,2021-06-09,11 SERVICES,CHIEF FINANCIAL OFFICER,CARDIFF EXECUTIVE CENTRE LTD,457071,2470,864497378
BEIS,Met Office,2021-06-09,PAYE AND VAT,OTHER,CARDIFF EXECUTIVE CENTRE LTD,457072,494,864497378
BEIS,Met Office,2021-06-09,11 SERVICES,CHIEF FINANCIAL OFFICER,CARDIFF EXECUTIVE CENTRE LTD,457072,2470,864497378
BEIS,Met Office,2021-06-09,11 SERVICES,MARKETS,Eumetsat,457078,-8000,VE
BEIS,Met Office,2021-06-30,11 SERVICES,CHIEF FINANCIAL OFFICER,SWISSCOM (SCHWEIZ) AG,457080,86.66,-
BEIS,Met Office,2021-06-14,11 SERVICES,PEOPLE,REDACTED PERSONAL DATA,457081,5110.5,143043312
BEIS,Met Office,2021-06-14,11 SERVICES,PEOPLE,REDACTED PERSONAL DATA,457082,1133,143043312
BEIS,Met Office,2021-06-11,FIXTURE & FITTINGS,CHIEF FINANCIAL OFFICER,NMCN PLC,457083,34428.84,GB648191516
BEIS,Met Office,2021-06-11,07 EQUIPMENT,SERVICES,Navtech Systems,457084,10485,GB474449707
BEIS,Met Office,2021-06-14,11 SERVICES,CHIEF FINANCIAL OFFICER,Vodafone Limited,457085,4221.43,569953277
BEIS,Met Office,2021-06-11,11 SERVICES,CHIEF FINANCIAL OFFICER,Vodafone Limited,457086,462.51,569953277
BEIS,Met Office,2021-06-11,11 SERVICES,PROGRAMMES,University Of Reading,457137,352900.53,200012659
BEIS,Met Office,2021-06-11,PAYE AND VAT,OTHER,DHL INTERNATIONAL (UK) LTD,457138,10,751812341
BEIS,Met Office,2021-06-11,11 SERVICES,SERVICES,DHL INTERNATIONAL (UK) LTD,457138,11,751812341
BEIS,Met Office,2021-06-21,04 CONTRACTORS,PEOPLE,SOLOS CONSULTANTS LTD,457139,1400,812035476
BEIS,Met Office,2021-06-21,04 CONTRACTORS,PROGRAMMES,SOLOS CONSULTANTS LTD,457140,2184,812035476
BEIS,Met Office,2021-06-16,04 CONTRACTORS,TECHNOLOGY AND CIO,SOLOS CONSULTANTS LTD,457141,2717,812035476
BEIS,Met Office,2021-06-21,04 CONTRACTORS,TECHNOLOGY AND CIO,SOLOS CONSULTANTS LTD,457142,1640,812035476
BEIS,Met Office,2021-06-21,04 CONTRACTORS,TECHNOLOGY AND CIO,SOLOS CONSULTANTS LTD,457143,1605.12,812035476
BEIS,Met Office,2021-06-21,04 CONTRACTORS,CHIEF FINANCIAL OFFICER,SOLOS CONSULTANTS LTD,457144,1270.72,812035476
BEIS,Met Office,2021-06-16,04 CONTRACTORS,TECHNOLOGY AND CIO,SOLOS CONSULTANTS LTD,457145,2080,812035476
BEIS,Met Office,2021-06-25,04 CONTRACTORS,PROGRAMMES,SOLOS CONSULTANTS LTD,457150,4420,812035476
BEIS,Met Office,2021-06-11,11 SERVICES,CHIEF FINANCIAL OFFICER,SURE SOUTH ATLANTIC LTD (ST HELENA),457152,834.48,30005
BEIS,Met Office,2021-06-11,11 SERVICES,CHIEF FINANCIAL OFFICER,SURE SOUTH ATLANTIC LTD (ST HELENA),457153,462,30005
BEIS,Met Office,2021-06-16,04 CONTRACTORS,PEOPLE,MATRIX SCM LIMITED,457155,194251.81,249 5734 68
BEIS,Met Office,2021-06-11,06 ACCOMMODATION,CHIEF FINANCIAL OFFICER,RIVER RIDGE,457156,109.09,176286083
BEIS,Met Office,2021-06-14,11 SERVICES,PROGRAMMES,University Of Exeter,457157,106589.3,142047795
BEIS,Met Office,2021-06-11,11 SERVICES,CHIEF FINANCIAL OFFICER,ADAM PHONES LTD,457158,176.7,538877093
BEIS,Met Office,2021-06-21,04 CONTRACTORS,TECHNOLOGY AND CIO,SOLOS CONSULTANTS LTD,457159,1175.63,812035476
BEIS,Met Office,2021-06-16,04 CONTRACTORS,PROGRAMMES,SOLOS CONSULTANTS LTD,457160,1922.8,812035476
BEIS,Met Office,2021-06-21,04 CONTRACTORS,MARKETS,SOLOS CONSULTANTS LTD,457162,1971.7,812035476
BEIS,Met Office,2021-06-16,04 CONTRACTORS,SERVICES,SOLOS CONSULTANTS LTD,457163,1859.96,812035476
BEIS,Met Office,2021-06-21,04 CONTRACTORS,TECHNOLOGY AND CIO,SOLOS CONSULTANTS LTD,457164,2600,812035476
BEIS,Met Office,2021-06-21,04 CONTRACTORS,PROGRAMMES,SOLOS CONSULTANTS LTD,457165,3120,812035476
BEIS,Met Office,2021-06-21,04 CONTRACTORS,PROGRAMMES,SOLOS CONSULTANTS LTD,457166,2737.92,812035476
BEIS,Met Office,2021-06-16,04 CONTRACTORS,TECHNOLOGY AND CIO,SOLOS CONSULTANTS LTD,457167,1759.8,812035476
BEIS,Met Office,2021-06-16,04 CONTRACTORS,CHIEF FINANCIAL OFFICER,SOLOS CONSULTANTS LTD,457168,2340.8,812035476
BEIS,Met Office,2021-06-21,04 CONTRACTORS,TECHNOLOGY AND CIO,SOLOS CONSULTANTS LTD,457169,2028,812035476
BEIS,Met Office,2021-06-21,04 CONTRACTORS,PROGRAMMES,SOLOS CONSULTANTS LTD,457170,1785.04,812035476
BEIS,Met Office,2021-06-21,04 CONTRACTORS,PROGRAMMES,SOLOS CONSULTANTS LTD,457171,1100,812035476
BEIS,Met Office,2021-06-11,13 MISCELLANEOUS,CHIEF FINANCIAL OFFICER,CANON UK LTD,457173,11812.72,523797128
BEIS,Met Office,2021-06-21,04 CONTRACTORS,PROGRAMMES,SOLOS CONSULTANTS LTD,457174,1751.36,812035476
BEIS,Met Office,2021-06-11,13 MISCELLANEOUS,CHIEF FINANCIAL OFFICER,CANON UK LTD,457175,2764.58,523797128
BEIS,Met Office,2021-06-11,13 MISCELLANEOUS,CHIEF FINANCIAL OFFICER,CANON UK LTD,457175,89.74,523797128
BEIS,Met Office,2021-06-11,13 MISCELLANEOUS,CHIEF FINANCIAL OFFICER,CANON UK LTD,457175,23.16,523797128
BEIS,Met Office,2021-06-11,13 MISCELLANEOUS,CHIEF FINANCIAL OFFICER,CANON UK LTD,457175,89.74,523797128
BEIS,Met Office,2021-06-11,13 MISCELLANEOUS,CHIEF FINANCIAL OFFICER,CANON UK LTD,457175,89.74,523797128
BEIS,Met Office,2021-06-11,13 MISCELLANEOUS,CHIEF FINANCIAL OFFICER,CANON UK LTD,457175,89.74,523797128
BEIS,Met Office,2021-06-16,04 CONTRACTORS,PROGRAMMES,SOLOS CONSULTANTS LTD,457176,1785.04,812035476
BEIS,Met Office,2021-06-21,04 CONTRACTORS,PROGRAMMES,SOLOS CONSULTANTS LTD,457177,1696,812035476
BEIS,Met Office,2021-06-16,04 CONTRACTORS,TECHNOLOGY AND CIO,HAYS SPECIALIST RECRUITMENT LTD,457188,414.18,773695871
BEIS,Met Office,2021-06-21,04 CONTRACTORS,PROGRAMMES,SOLOS CONSULTANTS LTD,457189,1396.28,812035476
BEIS,Met Office,2021-06-11,11 SERVICES,PEOPLE,LB TRAINING LTD,457190,395,-
BEIS,Met Office,2021-06-21,04 CONTRACTORS,PROGRAMMES,SOLOS CONSULTANTS LTD,457191,3599.6,812035476
BEIS,Met Office,2021-06-16,04 CONTRACTORS,PROGRAMMES,SOLOS CONSULTANTS LTD,457192,3016,812035476
BEIS,Met Office,2021-06-16,04 CONTRACTORS,PROGRAMMES,SOLOS CONSULTANTS LTD,457193,2796.84,812035476
BEIS,Met Office,2021-06-16,04 CONTRACTORS,PROGRAMMES,SOLOS CONSULTANTS LTD,457194,2796.84,812035476
BEIS,Met Office,2021-06-21,04 CONTRACTORS,TECHNOLOGY AND CIO,SOLOS CONSULTANTS LTD,457195,2142.4,812035476
BEIS,Met Office,2021-06-11,11 SERVICES,MARKETS,CACI LTD,457197,4349.87,380609841
BEIS,Met Office,2021-06-11,13 MISCELLANEOUS,CHIEF FINANCIAL OFFICER,POSTURITE (UK) LTD,457198,680.14,583565114
BEIS,Met Office,2021-06-11,13 MISCELLANEOUS,CHIEF FINANCIAL OFFICER,POSTURITE (UK) LTD,457199,50,583565114
BEIS,Met Office,2021-06-11,10 EQUIPMENT MAINTENANCE,SERVICES,YOUNG CALIBRATION LIMITED,457200,2925,673900720
BEIS,Met Office,2021-06-11,11 SERVICES,SERVICES,YOUNG CALIBRATION LIMITED,457200,15,673900720
BEIS,Met Office,2021-06-11,11 SERVICES,PROGRAMMES,University Of Reading,457201,-13792,200012659
BEIS,Met Office,2021-06-10,CASH AT BANK AND IN HAND,OTHER,BW TRAINING LTD,457222,-1185,-
BEIS,Met Office,2021-06-11,06 ACCOMMODATION,CHIEF FINANCIAL OFFICER,South West Water Ltd,457224,1193.41,236873674
BEIS,Met Office,2021-06-11,13 MISCELLANEOUS,SERVICES,MARINE MANAGEMENT ORGANISATION,457225,2200,990 8229 84
BEIS,Met Office,2021-06-11,11 SERVICES,CHIEF FINANCIAL OFFICER,JERSEY TELECOM,457226,1283.61,NOTVATREG
BEIS,Met Office,2021-06-11,11 SERVICES,CHIEF FINANCIAL OFFICER,MAWASEM LTD,457227,15848.27,197694731
BEIS,Met Office,2021-06-11,11 SERVICES,PROGRAMMES,University Of Reading,457228,418565.78,200012659
BEIS,Met Office,2021-06-16,03 STAFF COSTS T&S,SERVICES,HITACHI CAPITAL VEHICLE SOLUTIONS,457229,22.71,GB 823 8248 22
BEIS,Met Office,2021-06-21,11 SERVICES,TECHNOLOGY AND CIO,CLOUDREACH EUROPE LIMITED,457243,5150,978187168
BEIS,Met Office,2021-06-14,11 SERVICES,SERVICES,CLOUDREACH EUROPE LIMITED,457244,7300,978187168
BEIS,Met Office,2021-06-14,08 SOFTWARE LICENCES,TECHNOLOGY AND CIO,COMPUTACENTER (UK) LTD,457245,1684.14,490334648
BEIS,Met Office,2021-06-14,08 SOFTWARE LICENCES,TECHNOLOGY AND CIO,COMPUTACENTER (UK) LTD,457245,3604,490334648
BEIS,Met Office,2021-06-14,08 SOFTWARE LICENCES,TECHNOLOGY AND CIO,COMPUTACENTER (UK) LTD,457245,69987.66,490334648
BEIS,Met Office,2021-06-14,04 CONTRACTORS,SERVICES,REDACTED PERSONAL DATA,457246,1893.34,267253251
BEIS,Met Office,2021-06-16,03 STAFF COSTS T&S,CHIEF FINANCIAL OFFICER,ENTERPRISE RENT A CAR UK LTD,457297,806.56,215557314
BEIS,Met Office,2021-06-18,11 SERVICES,TECHNOLOGY AND CIO,RISUAL LIMITED,457298,4250,864480893
BEIS,Met Office,2021-06-28,11 SERVICES,MARKETS,FCDO,457299,16.7,888813560
BEIS,Met Office,2021-06-28,13 MISCELLANEOUS,CHIEF FINANCIAL OFFICER,POSTURITE (UK) LTD,457300,50,583565114
BEIS,Met Office,2021-06-18,06 ACCOMMODATION,SERVICES,INMARSAT SOLUTIONS (CANADA) INC,457302,56.36,766144223
BEIS,Met Office,2021-06-18,11 SERVICES,CHIEF FINANCIAL OFFICER,Morton Fraser LLP,457303,180,269129336
BEIS,Met Office,2021-06-18,07 EQUIPMENT,TECHNOLOGY AND CIO,COMPUTACENTER (UK) LTD,457305,192.48,490334648
BEIS,Met Office,2021-06-23,07 EQUIPMENT,TECHNOLOGY AND CIO,COMPUTACENTER (UK) LTD,457306,2166.12,490334648
BEIS,Met Office,2021-06-16,06 ACCOMMODATION,CHIEF FINANCIAL OFFICER,Mitie Landscapes Ltd,457308,5904.75,GB 416 706 654
BEIS,Met Office,2021-06-16,10 EQUIPMENT MAINTENANCE,TECHNOLOGY AND CIO,ORACLE CORPORATION UK LTD,457309,20650.46,391313073
BEIS,Met Office,2021-06-18,11 SERVICES,SCIENCE,University Of Leeds,457320,25000,613451470
BEIS,Met Office,2021-06-16,04 CONTRACTORS,CHIEF FINANCIAL OFFICER,JOBSEEKERS RECRUITMENT SERVICES LTD,457321,674.88,130 1297 14
BEIS,Met Office,2021-06-16,04 CONTRACTORS,MARKETS,JOBSEEKERS RECRUITMENT SERVICES LTD,457322,410.4,130 1297 14
BEIS,Met Office,2021-06-16,04 CONTRACTORS,OFFICE OF THE CEO,JOBSEEKERS RECRUITMENT SERVICES LTD,457323,674.88,130 1297 14
BEIS,Met Office,2021-06-16,04 CONTRACTORS,PEOPLE,JOBSEEKERS RECRUITMENT SERVICES LTD,457324,674.88,130 1297 14
BEIS,Met Office,2021-06-16,04 CONTRACTORS,PEOPLE,JOBSEEKERS RECRUITMENT SERVICES LTD,457325,674.88,130 1297 14
BEIS,Met Office,2021-06-16,11 SERVICES,PROGRAMMES,UK CENTRE FOR ECOLOGY & HYDROLOGY (UKCEH),457326,116403,336940192
BEIS,Met Office,2021-06-16,04 CONTRACTORS,MARKETS,JOBSEEKERS RECRUITMENT SERVICES LTD,457327,538.08,130 1297 14
BEIS,Met Office,2021-06-16,04 CONTRACTORS,CHIEF FINANCIAL OFFICER,JOBSEEKERS RECRUITMENT SERVICES LTD,457328,410.4,130 1297 14
BEIS,Met Office,2021-06-16,06 ACCOMMODATION,CHIEF FINANCIAL OFFICER,EXCEL AV LIMITED,457329,1600,994305005
BEIS,Met Office,2021-06-18,13 MISCELLANEOUS,OFFICE OF THE CEO,THOMSON REUTERS (PROFESSIONAL) UK LTD,457337,20500,900548743
BEIS,Met Office,2021-06-18,07 EQUIPMENT,SERVICES,CLARKE LANE ENGINEERING LTD,457338,96.44,412068487
BEIS,Met Office,2021-06-18,07 EQUIPMENT,SERVICES,CLARKE LANE ENGINEERING LTD,457338,37.52,412068487
BEIS,Met Office,2021-06-21,06 ACCOMMODATION,CHIEF FINANCIAL OFFICER,SAFESTORE LTD,457353,2815.28,722887607
BEIS,Met Office,2021-06-25,11 SERVICES,OFFICE OF THE CEO,BRYERS LLP,457354,1890,609635917
BEIS,Met Office,2021-06-18,06 ACCOMMODATION,CHIEF FINANCIAL OFFICER,BIDVEST NOONAN UK LTD,457356,74.84,GB847176988
BEIS,Met Office,2021-06-18,06 ACCOMMODATION,CHIEF FINANCIAL OFFICER,LHR BUSINESS SUPPORT CENTRE LTD,457358,3062.92,927365404
BEIS,Met Office,2021-06-23,11 SERVICES,CHIEF FINANCIAL OFFICER,INTEROUTE COMMUNICATIONS LIMITED,457359,4931.94,832 7071 39
BEIS,Met Office,2021-06-18,11 SERVICES,TECHNOLOGY AND CIO,CLOUDREACH EUROPE LIMITED,457360,2030.01,978187168
BEIS,Met Office,2021-06-18,11 SERVICES,SERVICES,Landmark Information Group Ltd,457362,64125,634509735
BEIS,Met Office,2021-06-18,06 ACCOMMODATION,CHIEF FINANCIAL OFFICER,Belfast International Airport Ltd,457364,24018,617777601
BEIS,Met Office,2021-06-18,06 ACCOMMODATION,CHIEF FINANCIAL OFFICER,VICKERY HOLMAN,457365,4015.62,943875678
BEIS,Met Office,2021-06-18,11 SERVICES,MARKETS,SOCIAL SENSING LTD,457366,2758,-
BEIS,Met Office,2021-06-21,13 MISCELLANEOUS,CHIEF FINANCIAL OFFICER,BANNER GROUP LIMITED,457371,9.71,GB391085740
BEIS,Met Office,2021-06-18,13 MISCELLANEOUS,CHIEF FINANCIAL OFFICER,BANNER GROUP LIMITED,457372,27.77,GB391085740
BEIS,Met Office,2021-06-18,06 ACCOMMODATION,CHIEF FINANCIAL OFFICER,BANNER GROUP LIMITED,457373,19.42,GB391085740
BEIS,Met Office,2021-06-18,06 ACCOMMODATION,CHIEF FINANCIAL OFFICER,BANNER GROUP LIMITED,457374,30.74,GB391085740
BEIS,Met Office,2021-06-21,11 SERVICES,PEOPLE,Cipd,457375,379,756 202 737.
BEIS,Met Office,2021-06-18,11 SERVICES,PEOPLE,Cipd,457376,3666.25,756 202 737.
BEIS,Met Office,2021-06-21,12 INTERNATIONAL,MARKETS,DESIGNAMITE LTD,457377,371,817819989
BEIS,Met Office,2021-06-21,11 SERVICES,SERVICES,SCIENCE & TECHNOLOGY FACILITIES COUNCIL,457378,11333.95,287461957
BEIS,Met Office,2021-06-21,11 SERVICES,PEOPLE,RIVER TRAINING AND HR,457379,395,-
BEIS,Met Office,2021-06-21,11 SERVICES,PROGRAMMES,BJSS LIMITED,457381,8593.75,613295452
BEIS,Met Office,2021-06-21,11 SERVICES,PROGRAMMES,BJSS LIMITED,457382,76450,613295452
BEIS,Met Office,2021-06-23,11 SERVICES,PROGRAMMES,BJSS LIMITED,457383,8500,613295452
BEIS,Met Office,2021-06-21,11 SERVICES,MARKETS,MOMENTUM INCORPORATED,457384,20000,598958541
BEIS,Met Office,2021-06-21,11 SERVICES,TECHNOLOGY AND CIO,Ibm United Kingdom Ltd,457394,6184.16,107328000
BEIS,Met Office,2021-06-23,08 SOFTWARE LICENCES,TECHNOLOGY AND CIO,LOOP1 UK LIMITED,457395,3744.67,02631536
BEIS,Met Office,2021-06-25,04 CONTRACTORS,PROGRAMMES,SOLOS CONSULTANTS LTD,457396,-884,812035476
BEIS,Met Office,2021-06-25,04 CONTRACTORS,TECHNOLOGY AND CIO,HAYS SPECIALIST RECRUITMENT LTD,457398,521.57,773695871
BEIS,Met Office,2021-06-25,04 CONTRACTORS,PEOPLE,HAYS SPECIALIST RECRUITMENT LTD,457399,72.32,773695871
BEIS,Met Office,2021-06-21,07 EQUIPMENT,TECHNOLOGY AND CIO,COMPUTACENTER (UK) LTD,457400,4099.48,490334648
BEIS,Met Office,2021-06-23,10 EQUIPMENT MAINTENANCE,TECHNOLOGY AND CIO,COMPUTACENTER (UK) LTD,457401,11486.47,490334648
BEIS,Met Office,2021-06-25,04 CONTRACTORS,PEOPLE,MATRIX SCM LIMITED,457402,232659.67,249 5734 68
BEIS,Met Office,2021-06-23,11 SERVICES,TECHNOLOGY AND CIO,SSE CONTRACTING LTD,457403,10393.84,570118464
BEIS,Met Office,2021-06-21,06 ACCOMMODATION,CHIEF FINANCIAL OFFICER,ST MODWEN VENTURES LTD,457404,23.53,975081008
BEIS,Met Office,2021-06-21,11 SERVICES,CHIEF FINANCIAL OFFICER,GIBRALTAR NYNEX COMMUNICATIONS LTD,457405,702,NOVAT
BEIS,Met Office,2021-06-21,11 SERVICES,SERVICES,IT SERVICE MANAGEMENT FORUM (ITSMF) LTD,457406,1500,595211632
BEIS,Met Office,2021-06-21,06 ACCOMMODATION,CHIEF FINANCIAL OFFICER,CBRE MANAGED SERVICES LTD,457407,205.82,853936883
BEIS,Met Office,2021-06-21,06 ACCOMMODATION,CHIEF FINANCIAL OFFICER,CBRE MANAGED SERVICES LTD,457407,307.37,853936883
BEIS,Met Office,2021-06-21,06 ACCOMMODATION,CHIEF FINANCIAL OFFICER,CBRE MANAGED SERVICES LTD,457407,239.86,853936883
BEIS,Met Office,2021-06-21,06 ACCOMMODATION,CHIEF FINANCIAL OFFICER,CBRE MANAGED SERVICES LTD,457407,430.63,853936883
BEIS,Met Office,2021-06-21,06 ACCOMMODATION,CHIEF FINANCIAL OFFICER,CBRE MANAGED SERVICES LTD,457407,94.73,853936883
BEIS,Met Office,2021-06-21,06 ACCOMMODATION,CHIEF FINANCIAL OFFICER,CBRE MANAGED SERVICES LTD,457407,2780.49,853936883
BEIS,Met Office,2021-06-21,06 ACCOMMODATION,CHIEF FINANCIAL OFFICER,CBRE MANAGED SERVICES LTD,457407,248.01,853936883
BEIS,Met Office,2021-06-21,06 ACCOMMODATION,CHIEF FINANCIAL OFFICER,CBRE MANAGED SERVICES LTD,457407,1410.06,853936883
BEIS,Met Office,2021-06-21,06 ACCOMMODATION,CHIEF FINANCIAL OFFICER,CBRE MANAGED SERVICES LTD,457408,14882.77,853936883
BEIS,Met Office,2021-06-21,06 ACCOMMODATION,CHIEF FINANCIAL OFFICER,CBRE MANAGED SERVICES LTD,457409,27079.82,853936883
BEIS,Met Office,2021-06-18,03 STAFF COSTS T&S,CHIEF FINANCIAL OFFICER,ENTERPRISE RENT A CAR UK LTD,457410,69.91,215557314
BEIS,Met Office,2021-06-28,11 SERVICES,PEOPLE,EDENRED - CHILDCARE VOUCHERS,457416,45,649 503 520
BEIS,Met Office,2021-06-23,06 ACCOMMODATION,CHIEF FINANCIAL OFFICER,CBRE,457440,3749.42,863613615
BEIS,Met Office,2021-06-21,11 SERVICES,CHIEF FINANCIAL OFFICER,BT GLOBAL SERVICES,457441,11209.19,245719348
BEIS,Met Office,2021-06-21,11 SERVICES,CHIEF FINANCIAL OFFICER,ALLSTAR BUSINESS SOLUTIONS LTD,457442,1983.46,747880191
BEIS,Met Office,2021-06-21,13 MISCELLANEOUS,CHIEF FINANCIAL OFFICER,NORSCOTT VENDING SERVICES LTD,457443,40.75,751402071
BEIS,Met Office,2021-06-23,03 STAFF COSTS T&S,SERVICES,DBS FINANCE RECEIPTS CTS,457444,4807,888805068
BEIS,Met Office,2021-06-21,11 SERVICES,SERVICES,SOFTWIRE TECHNOLOGY LIMITED,457445,2520,752 1253 57
BEIS,Met Office,2021-06-23,06 ACCOMMODATION,CHIEF FINANCIAL OFFICER,WIRELESS NETWORK DEVELOPMENTS (UK) LTD,457446,149.94,GB277474559
BEIS,Met Office,2021-06-21,11 SERVICES,SERVICES,Landmark Information Group Ltd,457447,76526,634509735
BEIS,Met Office,2021-06-21,11 SERVICES,MARKETS,University Of Leeds,457448,2162,613451470
BEIS,Met Office,2021-06-21,03 STAFF COSTS T&S,SERVICES,FALKLAND ISLAND COMPANY LTD,457449,700,N/A
BEIS,Met Office,2021-06-21,03 STAFF COSTS T&S,SERVICES,FALKLAND ISLAND COMPANY LTD,457450,700,N/A
BEIS,Met Office,2021-06-21,03 STAFF COSTS T&S,SERVICES,FALKLAND ISLAND COMPANY LTD,457451,700,N/A
BEIS,Met Office,2021-06-21,06 ACCOMMODATION,CHIEF FINANCIAL OFFICER,WEC GROUP LTD,457452,3267,176472775
BEIS,Met Office,2021-06-28,13 MISCELLANEOUS,OFFICE OF THE CEO,DEVON & CORNWALL BUSINESS COUNCIL,457453,600,768969833
BEIS,Met Office,2021-06-23,06 ACCOMMODATION,CHIEF FINANCIAL OFFICER,BIDVEST NOONAN UK LTD,457454,395.68,GB847176988
BEIS,Met Office,2021-06-25,06 ACCOMMODATION,CHIEF FINANCIAL OFFICER,THORLUX LIGHTING,457455,4676.14,GB 109 939 440
BEIS,Met Office,2021-06-23,06 ACCOMMODATION,CHIEF FINANCIAL OFFICER,BIDVEST NOONAN UK LTD,457456,890.6,GB847176988
BEIS,Met Office,2021-06-23,12 INTERNATIONAL,MARKETS,APPLIED SATELLITE TECHNOLOGY SYSTEMS LTD,457457,29.97,720108683
BEIS,Met Office,2021-06-30,COMPUTER SOFTWARE,SERVICES,APPLIED SATELLITE TECHNOLOGY SYSTEMS LTD,457458,10570.89,720108683
BEIS,Met Office,2021-06-21,11 SERVICES,TECHNOLOGY AND CIO,NEXUS OPEN SYSTEMS LTD,457462,1908.59,723221673
BEIS,Met Office,2021-06-23,11 SERVICES,CHIEF FINANCIAL OFFICER,REDACTED PERSONAL DATA,457463,451,729159704
BEIS,Met Office,2021-06-23,11 SERVICES,CHIEF FINANCIAL OFFICER,REDACTED PERSONAL DATA,457464,238,729159704
BEIS,Met Office,2021-06-21,11 SERVICES,TECHNOLOGY AND CIO,RISUAL LIMITED,457465,1700,864480893
BEIS,Met Office,2021-06-23,03 STAFF COSTS T&S,CHIEF FINANCIAL OFFICER,ENTERPRISE RENT A CAR UK LTD,457466,579.81,215557314
BEIS,Met Office,2021-06-21,13 MISCELLANEOUS,CHIEF FINANCIAL OFFICER,POSTURITE (UK) LTD,457467,602.02,583565114
BEIS,Met Office,2021-06-21,13 MISCELLANEOUS,CHIEF FINANCIAL OFFICER,POSTURITE (UK) LTD,457468,633.83,583565114
BEIS,Met Office,2021-06-24,07 EQUIPMENT,CHIEF FINANCIAL OFFICER,NATWEST COMMERCIAL CARDS DIVISION,457469,9634.96,N/A
BEIS,Met Office,2021-06-24,TRADE CREDITORS,OTHER,NATWEST COMMERCIAL CARDS DIVISION,457470,121694.95,N/A
BEIS,Met Office,2021-06-21,13 MISCELLANEOUS,CHIEF FINANCIAL OFFICER,POSTURITE (UK) LTD,457471,680.14,583565114
BEIS,Met Office,2021-06-23,11 SERVICES,SERVICES,APPLIED SATELLITE TECHNOLOGY SYSTEMS LTD,457472,233.59,720108683
BEIS,Met Office,2021-06-28,11 SERVICES,PEOPLE,EDENRED - CHILDCARE VOUCHERS,457474,15436.5,649 503 520
BEIS,Met Office,2021-06-28,11 SERVICES,MARKETS,ULTRA ELECTRONICS LTD NUCLEAR CONTROL SYSTEMS,457475,7905.11,123340754
BEIS,Met Office,2021-06-28,11 SERVICES,MARKETS,ULTRA ELECTRONICS LTD NUCLEAR CONTROL SYSTEMS,457476,7905.11,123340754
BEIS,Met Office,2021-06-28,11 SERVICES,MARKETS,ULTRA ELECTRONICS LTD NUCLEAR CONTROL SYSTEMS,457481,7905.11,123340754
BEIS,Met Office,2021-06-25,11 SERVICES,MARKETS,ULTRA ELECTRONICS LTD NUCLEAR CONTROL SYSTEMS,457482,546.23,123340754
BEIS,Met Office,2021-06-23,06 ACCOMMODATION,CHIEF FINANCIAL OFFICER,Sse Generation Ltd,457490,160,553769603
BEIS,Met Office,2021-06-23,11 SERVICES,MARKETS,MOMENTUM INCORPORATED,457527,6400,598958541
BEIS,Met Office,2021-06-23,13 MISCELLANEOUS,SCIENCE,University of Edinburgh,457528,1750,592950700
BEIS,Met Office,2021-06-23,INFORMATION TECHNOLOGY,PROGRAMMES,COMPUTACENTER (UK) LTD,457529,-268.72,490334648
BEIS,Met Office,2021-06-23,08 SOFTWARE LICENCES,SERVICES,SOFTCAT LTD,457530,15750.63,491848503
BEIS,Met Office,2021-06-23,11 SERVICES,SCIENCE,THREE BLIND MICE LTD,457531,3000,GB 645 434 730
BEIS,Met Office,2021-06-25,06 ACCOMMODATION,CHIEF FINANCIAL OFFICER,THORLUX LIGHTING,457532,1079.49,GB 109 939 440
BEIS,Met Office,2021-06-23,13 MISCELLANEOUS,SERVICES,DBS FINANCE RECEIPTS CTS,457533,30,888805068
BEIS,Met Office,2021-06-28,11 SERVICES,PROGRAMMES,BAE SYSTEMS APPLIED INTELLIGENCE LIMITED,457540,82500,GB641407169
BEIS,Met Office,2021-06-25,06 ACCOMMODATION,CHIEF FINANCIAL OFFICER,MORAY COUNCIL,457542,2218.13,663755506
BEIS,Met Office,2021-06-23,07 EQUIPMENT,TECHNOLOGY AND CIO,SSE CONTRACTING LTD,457543,80.28,570118464
BEIS,Met Office,2021-06-23,11 SERVICES,CHIEF FINANCIAL OFFICER,DIGITAL COMMUNICATIONS SYSTEMS LIMITED,457544,4143.58,GB 556 1971 19
BEIS,Met Office,2021-06-23,06 ACCOMMODATION,MARKETS,Northern Lighthouse Board,457545,2903.7,268628908
BEIS,Met Office,2021-06-25,04 CONTRACTORS,PEOPLE,JOBSEEKERS RECRUITMENT SERVICES LTD,457553,674.88,130 1297 14
BEIS,Met Office,2021-06-25,04 CONTRACTORS,PEOPLE,JOBSEEKERS RECRUITMENT SERVICES LTD,457554,674.88,130 1297 14
BEIS,Met Office,2021-06-25,04 CONTRACTORS,OFFICE OF THE CEO,JOBSEEKERS RECRUITMENT SERVICES LTD,457555,674.88,130 1297 14
BEIS,Met Office,2021-06-25,04 CONTRACTORS,MARKETS,JOBSEEKERS RECRUITMENT SERVICES LTD,457556,674.88,130 1297 14
BEIS,Met Office,2021-06-25,04 CONTRACTORS,MARKETS,JOBSEEKERS RECRUITMENT SERVICES LTD,457557,674.88,130 1297 14
BEIS,Met Office,2021-06-25,04 CONTRACTORS,CHIEF FINANCIAL OFFICER,JOBSEEKERS RECRUITMENT SERVICES LTD,457558,410.4,130 1297 14
BEIS,Met Office,2021-06-23,08 SOFTWARE LICENCES,TECHNOLOGY AND CIO,WSO2 (UK) LTD,457560,110903,977308971
BEIS,Met Office,2021-06-25,11 SERVICES,PEOPLE,YOUGOV PLC,457565,15100,991228109
BEIS,Met Office,2021-06-25,04 CONTRACTORS,PEOPLE,MATRIX SCM LIMITED,457598,215770.55,249 5734 68
BEIS,Met Office,2021-06-25,04 CONTRACTORS,PEOPLE,HAYS SPECIALIST RECRUITMENT LTD,457600,126.56,773695871
BEIS,Met Office,2021-06-25,11 SERVICES,CHIEF FINANCIAL OFFICER,BT CONFERENCING,457602,77.3,245719348
BEIS,Met Office,2021-06-25,06 ACCOMMODATION,CHIEF FINANCIAL OFFICER,SHETLAND CLEANING SERVICES,457603,739.97,430028404
BEIS,Met Office,2021-06-25,06 ACCOMMODATION,CHIEF FINANCIAL OFFICER,STONE HILL PARK LTD,457604,12.77,196461180
BEIS,Met Office,2021-06-25,06 ACCOMMODATION,CHIEF FINANCIAL OFFICER,ABOVE THE REST COMMERCIAL CLEANING LTD,457605,41,166969348
BEIS,Met Office,2021-06-25,06 ACCOMMODATION,CHIEF FINANCIAL OFFICER,MORAY COUNCIL,457606,2891,663755506
BEIS,Met Office,2021-06-25,06 ACCOMMODATION,MARKETS,SCOTTISH HYDRO-ELECTRIC,457608,66.08,553769603
BEIS,Met Office,2021-06-25,06 ACCOMMODATION,CHIEF FINANCIAL OFFICER,COUNCIL OF ISLES OF SCILLY,457610,1497,-
BEIS,Met Office,2021-06-25,11 SERVICES,CHIEF FINANCIAL OFFICER,BT GLOBAL SERVICES,457611,14222.84,245719348
BEIS,Met Office,2021-06-25,06 ACCOMMODATION,CHIEF FINANCIAL OFFICER,South West Water Ltd,457612,1293.31,236873674
BEIS,Met Office,2021-06-25,06 ACCOMMODATION,CHIEF FINANCIAL OFFICER,South West Water Ltd,457614,78.03,236873674
BEIS,Met Office,2021-06-25,06 ACCOMMODATION,CHIEF FINANCIAL OFFICER,South West Water Ltd,457615,733.26,236873674
BEIS,Met Office,2021-06-30,11 SERVICES,CHIEF FINANCIAL OFFICER,TELEFONICA O2 UK LIMITED,457616,50.14,778603785
BEIS,Met Office,2021-06-30,06 ACCOMMODATION,CHIEF FINANCIAL OFFICER,South West Water Ltd,457617,2098.87,236873674
BEIS,Met Office,2021-06-30,06 ACCOMMODATION,CHIEF FINANCIAL OFFICER,South West Water Ltd,457618,1996.09,236873674
BEIS,Met Office,2021-06-28,11 SERVICES,PEOPLE,ADJUST,457639,395,-
BEIS,Met Office,2021-06-30,11 SERVICES,CHIEF FINANCIAL OFFICER,BT plc,457641,876.22,245719348
BEIS,Met Office,2021-06-30,13 MISCELLANEOUS,SCIENCE,University Of Reading,457644,-2250,200012659
BEIS,Met Office,2021-06-30,13 MISCELLANEOUS,SCIENCE,University Of Reading,457645,-2250,200012659
BEIS,Met Office,2021-06-28,11 SERVICES,OFFICE OF THE CEO,BRYERS LLP,457646,4365,609635917
BEIS,Met Office,2021-06-28,06 ACCOMMODATION,CHIEF FINANCIAL OFFICER,Sse Generation Ltd,457647,0,553769603
BEIS,Met Office,2021-06-30,13 MISCELLANEOUS,SCIENCE,University Of Reading,457667,647.26,200012659
BEIS,Met Office,2021-06-30,13 MISCELLANEOUS,SCIENCE,University Of Reading,457668,1218.75,200012659
BEIS,Met Office,2021-06-28,13 MISCELLANEOUS,SERVICES,Royal Meteorological Society,457669,75.2,-
BEIS,Met Office,2021-06-30,13 MISCELLANEOUS,PEOPLE,HEALTH MANAGEMENT LTD,457671,1513.03,792250621
BEIS,Met Office,2021-06-28,07 EQUIPMENT,SERVICES,CPC BATTERY SERVICES LTD,457672,9360,223766167
BEIS,Met Office,2021-06-30,04 CONTRACTORS,TECHNOLOGY AND CIO,HAYS SPECIALIST RECRUITMENT LTD,457695,567.59,773695871
BEIS,Met Office,2021-06-30,11 SERVICES,SERVICES,VOLKSWAGEN GROUP LEASING,457696,3924.25,BG745963883
BEIS,Met Office,2021-06-30,11 SERVICES,SERVICES,VOLKSWAGEN GROUP LEASING,457697,3697.1,BG745963883
BEIS,Met Office,2021-06-30,11 SERVICES,SERVICES,VOLKSWAGEN GROUP LEASING,457698,3924.25,BG745963883
BEIS,Met Office,2021-06-30,11 SERVICES,SERVICES,VOLKSWAGEN GROUP LEASING,457700,3924.25,BG745963883
BEIS,Met Office,2021-06-30,11 SERVICES,SERVICES,VOLKSWAGEN GROUP LEASING,457701,3924.25,BG745963883
BEIS,Met Office,2021-06-30,11 SERVICES,SERVICES,VOLKSWAGEN GROUP LEASING,457702,3924.25,BG745963883
BEIS,Met Office,2021-06-30,11 SERVICES,SERVICES,VOLKSWAGEN GROUP LEASING,457703,3697.1,BG745963883
BEIS,Met Office,2021-06-30,03 STAFF COSTS T&S,CHIEF FINANCIAL OFFICER,ENTERPRISE RENT A CAR UK LTD,457704,764.54,215557314
BEIS,Met Office,2021-06-30,11 SERVICES,SERVICES,VOLKSWAGEN GROUP LEASING,457705,3697.1,BG745963883
BEIS,Met Office,2021-06-30,11 SERVICES,SERVICES,VOLKSWAGEN GROUP LEASING,457707,3697.1,BG745963883
BEIS,Met Office,2021-06-30,11 SERVICES,SERVICES,VOLKSWAGEN GROUP LEASING,457709,3697.1,BG745963883
BEIS,Met Office,2021-06-30,11 SERVICES,PROGRAMMES,University Of Cambridge,457712,10000,214222124
BEIS,Met Office,2021-06-30,11 SERVICES,SERVICES,VOLKSWAGEN GROUP LEASING,457714,3697.1,BG745963883
BEIS,Met Office,2021-06-30,11 SERVICES,PEOPLE,ADJUST,457720,990,-
BEIS,Met Office,2021-06-30,11 SERVICES,CHIEF FINANCIAL OFFICER,LEASEDRIVE RENTAL MANAGEMENT LTD,457721,2212.03,733546040
BEIS,Met Office,2021-06-30,FIXTURE & FITTINGS,CHIEF FINANCIAL OFFICER,FMS INTERIOR SERVICES LTD,457725,63.39,922056940
BEIS,Met Office,2021-06-30,FIXTURE & FITTINGS,CHIEF FINANCIAL OFFICER,FMS INTERIOR SERVICES LTD,457725,505.38,922056940
BEIS,Met Office,2021-06-30,04 CONTRACTORS,OFFICE OF THE CEO,JOBSEEKERS RECRUITMENT SERVICES LTD,457728,674.88,130 1297 14
BEIS,Met Office,2021-06-30,04 CONTRACTORS,PEOPLE,JOBSEEKERS RECRUITMENT SERVICES LTD,457729,674.88,130 1297 14
BEIS,Met Office,2021-06-30,04 CONTRACTORS,MARKETS,JOBSEEKERS RECRUITMENT SERVICES LTD,457730,538.08,130 1297 14
BEIS,Met Office,2021-06-30,04 CONTRACTORS,PEOPLE,JOBSEEKERS RECRUITMENT SERVICES LTD,457731,674.88,130 1297 14
BEIS,Met Office,2021-06-30,04 CONTRACTORS,CHIEF FINANCIAL OFFICER,JOBSEEKERS RECRUITMENT SERVICES LTD,457732,674.88,130 1297 14
BEIS,Met Office,2021-06-30,04 CONTRACTORS,MARKETS,JOBSEEKERS RECRUITMENT SERVICES LTD,457733,674.88,130 1297 14
BEIS,Met Office,2021-06-30,03 STAFF COSTS T&S,CHIEF FINANCIAL OFFICER,ENTERPRISE RENT A CAR UK LTD,457737,293.2,215557314
BEIS,Met Office,2021-06-30,03 STAFF COSTS T&S,CHIEF FINANCIAL OFFICER,ENTERPRISE RENT A CAR UK LTD,457738,488.68,215557314
BEIS,Met Office,2021-06-30,10 EQUIPMENT MAINTENANCE,TECHNOLOGY AND CIO,COMPUTACENTER (UK) LTD,457739,2190.89,490334648
BEIS,Met Office,2021-06-30,11 SERVICES,OFFICE OF THE CEO,BRYERS LLP,457740,225,609635917
BEIS,Met Office,2021-06-30,06 ACCOMMODATION,CHIEF FINANCIAL OFFICER,BOXX BUILD SOLUTIONS LIMITED,457744,813.76,231388417
